﻿Body Name ,Supp ID,,Supplier Name,Service Area Category,Supp Grp,Period,Transaction Date,TT,Unique Invoice Reference,,Inv Amount,Account,Expenditure Description,Cost C,Cost Centre Name,Posted Amount
Nottinghamshire Fire and Rescue Service ,101980,Hays Specialist Recruitment Limited,Hays Specialist Recruitment Limited,Management & Support Services,1,202307,28/09/2022,P6,9102904,-273.86 ,273.86 ,1005,Admin Agency Staff,2058,HR Support,228.22 
Nottinghamshire Fire and Rescue Service ,101980,Hays Specialist Recruitment Limited,Hays Specialist Recruitment Limited,Management & Support Services,1,202307,14/09/2022,P6,9103011,-989.96 ,989.96 ,1005,Admin Agency Staff,2058,HR Support,824.97 
Nottinghamshire Fire and Rescue Service ,101980,Hays Specialist Recruitment Limited,Hays Specialist Recruitment Limited,Management & Support Services,1,202307,12/10/2022,P6,9103078,"-1,017.72 ","1,017.72 ",1005,Admin Agency Staff,2058,HR Support,848.10 
Nottinghamshire Fire and Rescue Service ,101001,Express Recruitment Ltd,Express Recruitment Ltd,Management & Support Services,1,202307,05/10/2022,P6,9103094,-759.24 ,759.24 ,1005,Admin Agency Staff,2087,Estates Department (Previously Premises),632.70 
Nottinghamshire Fire and Rescue Service ,101001,Express Recruitment Ltd,Express Recruitment Ltd,Management & Support Services,1,202307,12/10/2022,P6,9103097,-759.24 ,759.24 ,1005,Admin Agency Staff,2087,Estates Department (Previously Premises),632.70 
Nottinghamshire Fire and Rescue Service ,101980,Hays Specialist Recruitment Limited,Hays Specialist Recruitment Limited,Management & Support Services,1,202307,19/10/2022,P6,9103171,"-1,008.47 ","1,008.47 ",1005,Admin Agency Staff,2058,HR Support,840.39 
Nottinghamshire Fire and Rescue Service ,101980,Hays Specialist Recruitment Limited,Hays Specialist Recruitment Limited,Management & Support Services,1,202307,28/09/2022,P6,9103174,-738.82 ,738.82 ,1005,Admin Agency Staff,2087,Estates Department (Previously Premises),615.68 
Nottinghamshire Fire and Rescue Service ,101980,Hays Specialist Recruitment Limited,Hays Specialist Recruitment Limited,Management & Support Services,1,202307,16/09/2022,P6,9103175,-994.56 ,994.56 ,1005,Admin Agency Staff,2087,Estates Department (Previously Premises),828.80 
Nottinghamshire Fire and Rescue Service ,101001,Express Recruitment Ltd,Express Recruitment Ltd,Management & Support Services,1,202307,28/09/2022,P6,9103176,-759.24 ,759.24 ,1005,Admin Agency Staff,2087,Estates Department (Previously Premises),632.70 
Nottinghamshire Fire and Rescue Service ,101980,Hays Specialist Recruitment Limited,Hays Specialist Recruitment Limited,Management & Support Services,1,202307,26/10/2022,P6,9103252,-906.70 ,906.70 ,1005,Admin Agency Staff,2058,HR Support,755.58 
Nottinghamshire Fire and Rescue Service ,101001,Express Recruitment Ltd,Express Recruitment Ltd,Management & Support Services,1,202307,19/10/2022,P6,9103259,-271.90 ,271.90 ,1005,Admin Agency Staff,2087,Estates Department (Previously Premises),226.58 
Nottinghamshire Fire and Rescue Service ,103371,Nottinghamshire Healthcare NHS Trust,Nottinghamshire Healthcare NHS Trust,Management & Support Services,5,202307,22/09/2022,P6,9103281,"-5,648.20 ","5,648.20 ",1005,Admin Agency Staff,2068,Prevention,"5,648.20 "
Nottinghamshire Fire and Rescue Service ,103371,Nottinghamshire Healthcare NHS Trust,Nottinghamshire Healthcare NHS Trust,Management & Support Services,5,202307,25/10/2022,P6,9103282,"-4,743.69 ","4,743.69 ",1005,Admin Agency Staff,2068,Prevention,"4,743.69 "
Nottinghamshire Fire and Rescue Service ,104135,Nottingham Drawing Services,Nottingham Drawing Services,Prevention and Education ,5,202307,02/10/2022,P6,9102952,-252.00 ,252.00 ,1801,Training,2026,Fire Investigation,252.00 
Nottinghamshire Fire and Rescue Service ,104243,Flex Labs Ltd Trading as Digital Learning Institute,Flex Labs Ltd Trading as Digital Learning Institute,Management & Support Services,5,202307,30/09/2022,P6,9102982,"-1,650.00 ","1,650.00 ",1801,Training,2059,Corporate Training,"1,650.00 "
Nottinghamshire Fire and Rescue Service ,104168,ioda Limited,ioda Limited,Management & Support Services,5,202307,30/09/2022,P6,9103004,-594.00 ,594.00 ,1801,Training,2054,Equalities Team,495.00 
Nottinghamshire Fire and Rescue Service ,104017,K Lamb Associates Limited,K Lamb Associates Limited,Management & Support Services,5,202307,06/10/2022,P6,9103007,"-3,000.00 ","3,000.00 ",1801,Training,2059,Corporate Training,"2,500.00 "
Nottinghamshire Fire and Rescue Service ,104242,NES Holdings (UK) Limited,NES Holdings (UK) Limited,Management & Support Services,5,202307,30/09/2022,P6,9103021,"-1,080.00 ","1,080.00 ",1801,Training,2059,Corporate Training,900.00 
Nottinghamshire Fire and Rescue Service ,103483,Risual Limited,Risual Limited,Management & Support Services,5,202307,30/09/2022,P6,9103072,-600.00 ,600.00 ,1801,Training,2059,Corporate Training,500.00 
Nottinghamshire Fire and Rescue Service ,102532,Safequip Ltd,Safequip Ltd,Management & Support Services,1,202307,11/10/2022,P6,9103073,-554.40 ,554.40 ,1801,Training,2059,Corporate Training,462.00 
Nottinghamshire Fire and Rescue Service ,101847,The Outreach Organisation Limited,The Outreach Organisation Limited,Management & Support Services,1,202307,13/10/2022,P6,9103109,"-1,152.00 ","1,152.00 ",1801,Training,2059,Corporate Training,960.00 
Nottinghamshire Fire and Rescue Service ,100019,Nuffield Sailing Centre,Nuffield Sailing Centre,Management & Support Services,1,202307,14/10/2022,P6,9103118,-880.00 ,880.00 ,1801,Training,2059,Corporate Training,40.00 
Nottinghamshire Fire and Rescue Service ,104168,ioda Limited,ioda Limited,Management & Support Services,5,202307,17/10/2022,P6,9103119,-594.00 ,594.00 ,1801,Training,2054,Equalities Team,495.00 
Nottinghamshire Fire and Rescue Service ,104017,K Lamb Associates Limited,K Lamb Associates Limited,Management & Support Services,5,202307,17/10/2022,P6,9103122,"-3,600.00 ","3,600.00 ",1801,Training,2059,Corporate Training,"3,000.00 "
Nottinghamshire Fire and Rescue Service ,103616,Police and Crime Commissioner for South Yorkshire,Police and Crime Commissioner for South Yorkshire,Prevention and Education ,5,202307,14/10/2022,P6,9103132,"-1,000.00 ","1,000.00 ",1801,Training,2026,Fire Investigation,"1,000.00 "
Nottinghamshire Fire and Rescue Service ,103277,Actorshop Training Associates,Actorshop Training Associates,Management & Support Services,5,202307,19/10/2022,P6,9103148,-600.00 ,600.00 ,1801,Training,2054,Equalities Team,600.00 
Nottinghamshire Fire and Rescue Service ,103378,R3 Safety & Rescue Limited,R3 Safety & Rescue Limited,Management & Support Services,5,202307,21/10/2022,P6,9103151,"-1,140.00 ","1,140.00 ",1801,Training,2059,Corporate Training,950.00 
Nottinghamshire Fire and Rescue Service ,104017,K Lamb Associates Limited,K Lamb Associates Limited,Management & Support Services,5,202307,24/10/2022,P6,9103179,"-1,800.00 ","1,800.00 ",1801,Training,2059,Corporate Training,"1,500.00 "
Nottinghamshire Fire and Rescue Service ,103378,R3 Safety & Rescue Limited,R3 Safety & Rescue Limited,Management & Support Services,5,202307,26/10/2022,P6,9103202,"-7,800.00 ","7,800.00 ",1801,Training,2059,Corporate Training,"6,500.00 "
Nottinghamshire Fire and Rescue Service ,104134,Xact Consultancy & Training Limited,Xact Consultancy & Training Limited,"Statutory Inspection, Certification & Enforcement",5,202307,16/10/2022,P6,9103206,"-1,296.00 ","1,296.00 ",1801,Training,2021,Fire Protection,"1,080.00 "
Nottinghamshire Fire and Rescue Service ,104170,Jagtar Singh Associates (JSA),Jagtar Singh Associates (JSA),Management & Support Services,5,202307,25/10/2022,P6,9103265,-300.00 ,300.00 ,1801,Training,2054,Equalities Team,125.00 
Nottinghamshire Fire and Rescue Service ,103625,Respiratory Protective Assessment Limited,Respiratory Protective Assessment Limited,Management & Support Services,5,202307,14/10/2022,P6,9103273,-900.00 ,900.00 ,1801,Training,2061,Occupational Health & Fitness,750.00 
Nottinghamshire Fire and Rescue Service ,104170,Jagtar Singh Associates (JSA),Jagtar Singh Associates (JSA),Management & Support Services,5,202307,25/10/2022,P6,9103265,-300.00 ,300.00 ,1804,Training - Inclusion,2054,Equalities Team,125.00 
Nottinghamshire Fire and Rescue Service ,104245,Achieva Group Limited,Achieva Group Limited,Management & Support Services,5,202307,18/10/2022,P6,9103169,"-9,799.02 ","9,799.02 ",1850,Recruitment Advertising,2049,Professional Support,"8,165.85 "
Nottinghamshire Fire and Rescue Service ,102280,Amptron Electrical Services,Amptron Electrical Services,Operational Responses,1,202307,31/08/2022,P6,9103036,"-60,872.75 ","60,872.75 ",2000,Buildings Repairs and Maintenance - Reactive,1001,Mansfield,"5,508.63 "
Nottinghamshire Fire and Rescue Service ,102280,Amptron Electrical Services,Amptron Electrical Services,Operational Responses,1,202307,31/08/2022,P6,9103036,"-60,872.75 ","60,872.75 ",2000,Buildings Repairs and Maintenance - Reactive,1007,Warsop,281.03 
Nottinghamshire Fire and Rescue Service ,102280,Amptron Electrical Services,Amptron Electrical Services,Operational Responses,1,202307,31/08/2022,P6,9103036,"-60,872.75 ","60,872.75 ",2000,Buildings Repairs and Maintenance - Reactive,1012,Retford,282.83 
Nottinghamshire Fire and Rescue Service ,102280,Amptron Electrical Services,Amptron Electrical Services,Operational Responses,1,202307,31/08/2022,P6,9103036,"-60,872.75 ","60,872.75 ",2000,Buildings Repairs and Maintenance - Reactive,1015,Collingham,800.00 
Nottinghamshire Fire and Rescue Service ,102280,Amptron Electrical Services,Amptron Electrical Services,Operational Responses,1,202307,31/08/2022,P6,9103036,"-60,872.75 ","60,872.75 ",2000,Buildings Repairs and Maintenance - Reactive,1016,Newark,"1,513.30 "
Nottinghamshire Fire and Rescue Service ,102280,Amptron Electrical Services,Amptron Electrical Services,Operational Responses,1,202307,31/08/2022,P6,9103036,"-60,872.75 ","60,872.75 ",2000,Buildings Repairs and Maintenance - Reactive,1020,Stockhill,"24,545.44 "
Nottinghamshire Fire and Rescue Service ,102280,Amptron Electrical Services,Amptron Electrical Services,Operational Responses,1,202307,31/08/2022,P6,9103036,"-60,872.75 ","60,872.75 ",2000,Buildings Repairs and Maintenance - Reactive,1024,Eastwood,"1,242.54 "
Nottinghamshire Fire and Rescue Service ,102280,Amptron Electrical Services,Amptron Electrical Services,Operational Responses,1,202307,31/08/2022,P6,9103036,"-60,872.75 ","60,872.75 ",2000,Buildings Repairs and Maintenance - Reactive,1029,Highfields Station,"14,954.50 "
Nottinghamshire Fire and Rescue Service ,102280,Amptron Electrical Services,Amptron Electrical Services,Management & Support Services,1,202307,31/08/2022,P6,9103036,"-60,872.75 ","60,872.75 ",2000,Buildings Repairs and Maintenance - Reactive,1030,Service Development Centre,"1,244.56 "
Nottinghamshire Fire and Rescue Service ,102280,Amptron Electrical Services,Amptron Electrical Services,Management & Support Services,1,202307,31/08/2022,P6,9103036,"-60,872.75 ","60,872.75 ",2000,Buildings Repairs and Maintenance - Reactive,1035,Headquarters,354.44 
Nottinghamshire Fire and Rescue Service ,102280,Amptron Electrical Services,Amptron Electrical Services,Operational Responses,1,202307,30/09/2022,P6,9103108,"-57,499.80 ","57,499.80 ",2000,Buildings Repairs and Maintenance - Reactive,1001,Mansfield,"4,432.51 "
Nottinghamshire Fire and Rescue Service ,102280,Amptron Electrical Services,Amptron Electrical Services,Operational Responses,1,202307,30/09/2022,P6,9103108,"-57,499.80 ","57,499.80 ",2000,Buildings Repairs and Maintenance - Reactive,1003,London Road,596.30 
Nottinghamshire Fire and Rescue Service ,102280,Amptron Electrical Services,Amptron Electrical Services,Operational Responses,1,202307,30/09/2022,P6,9103108,"-57,499.80 ","57,499.80 ",2000,Buildings Repairs and Maintenance - Reactive,1007,Warsop,442.10 
Nottinghamshire Fire and Rescue Service ,102280,Amptron Electrical Services,Amptron Electrical Services,Operational Responses,1,202307,30/09/2022,P6,9103108,"-57,499.80 ","57,499.80 ",2000,Buildings Repairs and Maintenance - Reactive,1010,Harworth,98.60 
Nottinghamshire Fire and Rescue Service ,102280,Amptron Electrical Services,Amptron Electrical Services,Operational Responses,1,202307,30/09/2022,P6,9103108,"-57,499.80 ","57,499.80 ",2000,Buildings Repairs and Maintenance - Reactive,1011,Misterton,"3,960.00 "
Nottinghamshire Fire and Rescue Service ,102280,Amptron Electrical Services,Amptron Electrical Services,Operational Responses,1,202307,30/09/2022,P6,9103108,"-57,499.80 ","57,499.80 ",2000,Buildings Repairs and Maintenance - Reactive,1012,Retford,"6,270.91 "
Nottinghamshire Fire and Rescue Service ,102280,Amptron Electrical Services,Amptron Electrical Services,Operational Responses,1,202307,30/09/2022,P6,9103108,"-57,499.80 ","57,499.80 ",2000,Buildings Repairs and Maintenance - Reactive,1013,Tuxford,130.43 
Nottinghamshire Fire and Rescue Service ,102280,Amptron Electrical Services,Amptron Electrical Services,Operational Responses,1,202307,30/09/2022,P6,9103108,"-57,499.80 ","57,499.80 ",2000,Buildings Repairs and Maintenance - Reactive,1016,Newark,"1,091.17 "
Nottinghamshire Fire and Rescue Service ,102280,Amptron Electrical Services,Amptron Electrical Services,Operational Responses,1,202307,30/09/2022,P6,9103108,"-57,499.80 ","57,499.80 ",2000,Buildings Repairs and Maintenance - Reactive,1017,Bingham,111.12 
Nottinghamshire Fire and Rescue Service ,102280,Amptron Electrical Services,Amptron Electrical Services,Operational Responses,1,202307,30/09/2022,P6,9103108,"-57,499.80 ","57,499.80 ",2000,Buildings Repairs and Maintenance - Reactive,1019,West Bridgford,"5,403.34 "
Nottinghamshire Fire and Rescue Service ,102280,Amptron Electrical Services,Amptron Electrical Services,Operational Responses,1,202307,30/09/2022,P6,9103108,"-57,499.80 ","57,499.80 ",2000,Buildings Repairs and Maintenance - Reactive,1020,Stockhill,"8,976.73 "
Nottinghamshire Fire and Rescue Service ,102280,Amptron Electrical Services,Amptron Electrical Services,Operational Responses,1,202307,30/09/2022,P6,9103108,"-57,499.80 ","57,499.80 ",2000,Buildings Repairs and Maintenance - Reactive,1024,Eastwood,"1,027.78 "
Nottinghamshire Fire and Rescue Service ,102280,Amptron Electrical Services,Amptron Electrical Services,Operational Responses,1,202307,30/09/2022,P6,9103108,"-57,499.80 ","57,499.80 ",2000,Buildings Repairs and Maintenance - Reactive,1026,Arnold,"2,149.73 "
Nottinghamshire Fire and Rescue Service ,102280,Amptron Electrical Services,Amptron Electrical Services,Operational Responses,1,202307,30/09/2022,P6,9103108,"-57,499.80 ","57,499.80 ",2000,Buildings Repairs and Maintenance - Reactive,1027,Carlton,"10,416.53 "
Nottinghamshire Fire and Rescue Service ,102280,Amptron Electrical Services,Amptron Electrical Services,Operational Responses,1,202307,30/09/2022,P6,9103108,"-57,499.80 ","57,499.80 ",2000,Buildings Repairs and Maintenance - Reactive,1028,East Leake,362.40 
Nottinghamshire Fire and Rescue Service ,102280,Amptron Electrical Services,Amptron Electrical Services,Operational Responses,1,202307,30/09/2022,P6,9103108,"-57,499.80 ","57,499.80 ",2000,Buildings Repairs and Maintenance - Reactive,1029,Highfields Station,"2,327.77 "
Nottinghamshire Fire and Rescue Service ,102280,Amptron Electrical Services,Amptron Electrical Services,Management & Support Services,1,202307,30/09/2022,P6,9103108,"-57,499.80 ","57,499.80 ",2000,Buildings Repairs and Maintenance - Reactive,1035,Headquarters,119.08 
Nottinghamshire Fire and Rescue Service ,102280,Amptron Electrical Services,Amptron Electrical Services,Management & Support Services,1,202307,30/09/2022,P6,9103114,-918.58 ,918.58 ,2000,Buildings Repairs and Maintenance - Reactive,2087,Estates Department (Previously Premises),765.48 
Nottinghamshire Fire and Rescue Service ,104167,"Graham Asset Management, John Graham Holdings Limited","Graham Asset Management, John Graham Holdings Limited",Management & Support Services,5,202307,31/10/2022,P6,9103292,"-153,600.00 ","153,600.00 ",2000,Buildings Repairs and Maintenance - Reactive,2087,Estates Department (Previously Premises),"128,000.00 "
Nottinghamshire Fire and Rescue Service ,103837,BWT UK Limited,BWT UK Limited,Management & Support Services,5,202307,31/08/2022,P6,9102928,-592.19 ,592.19 ,2050,Building Maintenance - Planned,2087,Estates Department (Previously Premises),493.50 
Nottinghamshire Fire and Rescue Service ,103837,BWT UK Limited,BWT UK Limited,Management & Support Services,5,202307,31/07/2022,P6,9102929,-466.19 ,466.19 ,2050,Building Maintenance - Planned,2087,Estates Department (Previously Premises),388.50 
Nottinghamshire Fire and Rescue Service ,103837,BWT UK Limited,BWT UK Limited,Management & Support Services,5,202307,31/05/2022,P6,9102930,-571.19 ,571.19 ,2050,Building Maintenance - Planned,2087,Estates Department (Previously Premises),476.00 
Nottinghamshire Fire and Rescue Service ,102280,Amptron Electrical Services,Amptron Electrical Services,Management & Support Services,1,202307,30/09/2022,P6,9103091,"-48,550.70 ","48,550.70 ",2050,Building Maintenance - Planned,2087,Estates Department (Previously Premises),"40,458.92 "
Nottinghamshire Fire and Rescue Service ,102280,Amptron Electrical Services,Amptron Electrical Services,Operational Responses,1,202307,30/08/2022,P6,9103110,"-2,613.97 ","2,613.97 ",2050,Building Maintenance - Planned,1026,Arnold,"1,352.46 "
Nottinghamshire Fire and Rescue Service ,102280,Amptron Electrical Services,Amptron Electrical Services,Management & Support Services,1,202307,30/08/2022,P6,9103110,"-2,613.97 ","2,613.97 ",2050,Building Maintenance - Planned,2087,Estates Department (Previously Premises),825.85 
Nottinghamshire Fire and Rescue Service ,102280,Amptron Electrical Services,Amptron Electrical Services,Operational Responses,1,202307,31/08/2022,P6,9103111,"-23,211.89 ","23,211.89 ",2050,Building Maintenance - Planned,1001,Mansfield,"1,200.00 "
Nottinghamshire Fire and Rescue Service ,102280,Amptron Electrical Services,Amptron Electrical Services,Operational Responses,1,202307,31/08/2022,P6,9103111,"-23,211.89 ","23,211.89 ",2050,Building Maintenance - Planned,1003,London Road,910.51 
Nottinghamshire Fire and Rescue Service ,102280,Amptron Electrical Services,Amptron Electrical Services,Operational Responses,1,202307,31/08/2022,P6,9103111,"-23,211.89 ","23,211.89 ",2050,Building Maintenance - Planned,1005,Ashfield,"1,684.91 "
Nottinghamshire Fire and Rescue Service ,102280,Amptron Electrical Services,Amptron Electrical Services,Operational Responses,1,202307,31/08/2022,P6,9103111,"-23,211.89 ","23,211.89 ",2050,Building Maintenance - Planned,1006,Edwinstowe,929.90 
Nottinghamshire Fire and Rescue Service ,102280,Amptron Electrical Services,Amptron Electrical Services,Operational Responses,1,202307,31/08/2022,P6,9103111,"-23,211.89 ","23,211.89 ",2050,Building Maintenance - Planned,1007,Warsop,"1,314.80 "
Nottinghamshire Fire and Rescue Service ,102280,Amptron Electrical Services,Amptron Electrical Services,Operational Responses,1,202307,31/08/2022,P6,9103111,"-23,211.89 ","23,211.89 ",2050,Building Maintenance - Planned,1010,Harworth,602.83 
Nottinghamshire Fire and Rescue Service ,102280,Amptron Electrical Services,Amptron Electrical Services,Operational Responses,1,202307,31/08/2022,P6,9103111,"-23,211.89 ","23,211.89 ",2050,Building Maintenance - Planned,1011,Misterton,462.32 
Nottinghamshire Fire and Rescue Service ,102280,Amptron Electrical Services,Amptron Electrical Services,Operational Responses,1,202307,31/08/2022,P6,9103111,"-23,211.89 ","23,211.89 ",2050,Building Maintenance - Planned,1012,Retford,607.40 
Nottinghamshire Fire and Rescue Service ,102280,Amptron Electrical Services,Amptron Electrical Services,Operational Responses,1,202307,31/08/2022,P6,9103111,"-23,211.89 ","23,211.89 ",2050,Building Maintenance - Planned,1013,Tuxford,"1,529.61 "
Nottinghamshire Fire and Rescue Service ,102280,Amptron Electrical Services,Amptron Electrical Services,Operational Responses,1,202307,31/08/2022,P6,9103111,"-23,211.89 ","23,211.89 ",2050,Building Maintenance - Planned,1015,Collingham,444.93 
Nottinghamshire Fire and Rescue Service ,102280,Amptron Electrical Services,Amptron Electrical Services,Operational Responses,1,202307,31/08/2022,P6,9103111,"-23,211.89 ","23,211.89 ",2050,Building Maintenance - Planned,1016,Newark,"1,602.47 "
Nottinghamshire Fire and Rescue Service ,102280,Amptron Electrical Services,Amptron Electrical Services,Operational Responses,1,202307,31/08/2022,P6,9103111,"-23,211.89 ","23,211.89 ",2050,Building Maintenance - Planned,1019,West Bridgford,"1,750.83 "
Nottinghamshire Fire and Rescue Service ,102280,Amptron Electrical Services,Amptron Electrical Services,Operational Responses,1,202307,31/08/2022,P6,9103111,"-23,211.89 ","23,211.89 ",2050,Building Maintenance - Planned,1020,Stockhill,790.69 
Nottinghamshire Fire and Rescue Service ,102280,Amptron Electrical Services,Amptron Electrical Services,Operational Responses,1,202307,31/08/2022,P6,9103111,"-23,211.89 ","23,211.89 ",2050,Building Maintenance - Planned,1023,Stapleford,"1,253.05 "
Nottinghamshire Fire and Rescue Service ,102280,Amptron Electrical Services,Amptron Electrical Services,Operational Responses,1,202307,31/08/2022,P6,9103111,"-23,211.89 ","23,211.89 ",2050,Building Maintenance - Planned,1024,Eastwood,558.80 
Nottinghamshire Fire and Rescue Service ,102280,Amptron Electrical Services,Amptron Electrical Services,Operational Responses,1,202307,31/08/2022,P6,9103111,"-23,211.89 ","23,211.89 ",2050,Building Maintenance - Planned,1025,Hucknall,33.52 
Nottinghamshire Fire and Rescue Service ,102280,Amptron Electrical Services,Amptron Electrical Services,Operational Responses,1,202307,31/08/2022,P6,9103111,"-23,211.89 ","23,211.89 ",2050,Building Maintenance - Planned,1027,Carlton,963.94 
Nottinghamshire Fire and Rescue Service ,102280,Amptron Electrical Services,Amptron Electrical Services,Operational Responses,1,202307,31/08/2022,P6,9103111,"-23,211.89 ","23,211.89 ",2050,Building Maintenance - Planned,1028,East Leake,345.94 
Nottinghamshire Fire and Rescue Service ,102280,Amptron Electrical Services,Amptron Electrical Services,Operational Responses,1,202307,31/08/2022,P6,9103111,"-23,211.89 ","23,211.89 ",2050,Building Maintenance - Planned,1029,Highfields Station,"1,119.45 "
Nottinghamshire Fire and Rescue Service ,102280,Amptron Electrical Services,Amptron Electrical Services,Management & Support Services,1,202307,31/08/2022,P6,9103111,"-23,211.89 ","23,211.89 ",2050,Building Maintenance - Planned,1030,Service Development Centre,"1,237.34 "
Nottinghamshire Fire and Rescue Service ,103487,East Midlands Ambulance Service NHS Trust,East Midlands Ambulance Service NHS Trust,Operational Responses,1,202307,28/09/2022,P6,9103156,"-4,946.65 ","4,946.65 ",2050,Building Maintenance - Planned,1025,Hucknall,"4,122.21 "
Nottinghamshire Fire and Rescue Service ,102280,Amptron Electrical Services,Amptron Electrical Services,Operational Responses,1,202307,30/09/2022,P6,9103160,"-12,165.30 ","12,165.30 ",2050,Building Maintenance - Planned,1001,Mansfield,409.79 
Nottinghamshire Fire and Rescue Service ,102280,Amptron Electrical Services,Amptron Electrical Services,Operational Responses,1,202307,30/09/2022,P6,9103160,"-12,165.30 ","12,165.30 ",2050,Building Maintenance - Planned,1002,Blidworth,837.40 
Nottinghamshire Fire and Rescue Service ,102280,Amptron Electrical Services,Amptron Electrical Services,Operational Responses,1,202307,30/09/2022,P6,9103160,"-12,165.30 ","12,165.30 ",2050,Building Maintenance - Planned,1003,London Road,46.80 
Nottinghamshire Fire and Rescue Service ,102280,Amptron Electrical Services,Amptron Electrical Services,Operational Responses,1,202307,30/09/2022,P6,9103160,"-12,165.30 ","12,165.30 ",2050,Building Maintenance - Planned,1005,Ashfield,693.55 
Nottinghamshire Fire and Rescue Service ,102280,Amptron Electrical Services,Amptron Electrical Services,Operational Responses,1,202307,30/09/2022,P6,9103160,"-12,165.30 ","12,165.30 ",2050,Building Maintenance - Planned,1006,Edwinstowe,"1,007.74 "
Nottinghamshire Fire and Rescue Service ,102280,Amptron Electrical Services,Amptron Electrical Services,Operational Responses,1,202307,30/09/2022,P6,9103160,"-12,165.30 ","12,165.30 ",2050,Building Maintenance - Planned,1007,Warsop,379.57 
Nottinghamshire Fire and Rescue Service ,102280,Amptron Electrical Services,Amptron Electrical Services,Operational Responses,1,202307,30/09/2022,P6,9103160,"-12,165.30 ","12,165.30 ",2050,Building Maintenance - Planned,1010,Harworth,171.53 
Nottinghamshire Fire and Rescue Service ,102280,Amptron Electrical Services,Amptron Electrical Services,Operational Responses,1,202307,30/09/2022,P6,9103160,"-12,165.30 ","12,165.30 ",2050,Building Maintenance - Planned,1011,Misterton,163.15 
Nottinghamshire Fire and Rescue Service ,102280,Amptron Electrical Services,Amptron Electrical Services,Operational Responses,1,202307,30/09/2022,P6,9103160,"-12,165.30 ","12,165.30 ",2050,Building Maintenance - Planned,1012,Retford,400.01 
Nottinghamshire Fire and Rescue Service ,102280,Amptron Electrical Services,Amptron Electrical Services,Operational Responses,1,202307,30/09/2022,P6,9103160,"-12,165.30 ","12,165.30 ",2050,Building Maintenance - Planned,1013,Tuxford,188.81 
Nottinghamshire Fire and Rescue Service ,102280,Amptron Electrical Services,Amptron Electrical Services,Operational Responses,1,202307,30/09/2022,P6,9103160,"-12,165.30 ","12,165.30 ",2050,Building Maintenance - Planned,1014,Southwell,129.63 
Nottinghamshire Fire and Rescue Service ,102280,Amptron Electrical Services,Amptron Electrical Services,Operational Responses,1,202307,30/09/2022,P6,9103160,"-12,165.30 ","12,165.30 ",2050,Building Maintenance - Planned,1015,Collingham,112.87 
Nottinghamshire Fire and Rescue Service ,102280,Amptron Electrical Services,Amptron Electrical Services,Operational Responses,1,202307,30/09/2022,P6,9103160,"-12,165.30 ","12,165.30 ",2050,Building Maintenance - Planned,1016,Newark,45.83 
Nottinghamshire Fire and Rescue Service ,102280,Amptron Electrical Services,Amptron Electrical Services,Operational Responses,1,202307,30/09/2022,P6,9103160,"-12,165.30 ","12,165.30 ",2050,Building Maintenance - Planned,1017,Bingham,138.01 
Nottinghamshire Fire and Rescue Service ,102280,Amptron Electrical Services,Amptron Electrical Services,Operational Responses,1,202307,30/09/2022,P6,9103160,"-12,165.30 ","12,165.30 ",2050,Building Maintenance - Planned,1019,West Bridgford,359.51 
Nottinghamshire Fire and Rescue Service ,102280,Amptron Electrical Services,Amptron Electrical Services,Operational Responses,1,202307,30/09/2022,P6,9103160,"-12,165.30 ","12,165.30 ",2050,Building Maintenance - Planned,1020,Stockhill,393.03 
Nottinghamshire Fire and Rescue Service ,102280,Amptron Electrical Services,Amptron Electrical Services,Operational Responses,1,202307,30/09/2022,P6,9103160,"-12,165.30 ","12,165.30 ",2050,Building Maintenance - Planned,1023,Stapleford,129.63 
Nottinghamshire Fire and Rescue Service ,102280,Amptron Electrical Services,Amptron Electrical Services,Operational Responses,1,202307,30/09/2022,P6,9103160,"-12,165.30 ","12,165.30 ",2050,Building Maintenance - Planned,1024,Eastwood,96.11 
Nottinghamshire Fire and Rescue Service ,102280,Amptron Electrical Services,Amptron Electrical Services,Operational Responses,1,202307,30/09/2022,P6,9103160,"-12,165.30 ","12,165.30 ",2050,Building Maintenance - Planned,1026,Arnold,604.73 
Nottinghamshire Fire and Rescue Service ,102280,Amptron Electrical Services,Amptron Electrical Services,Operational Responses,1,202307,30/09/2022,P6,9103160,"-12,165.30 ","12,165.30 ",2050,Building Maintenance - Planned,1027,Carlton,"1,169.81 "
Nottinghamshire Fire and Rescue Service ,102280,Amptron Electrical Services,Amptron Electrical Services,Operational Responses,1,202307,30/09/2022,P6,9103160,"-12,165.30 ","12,165.30 ",2050,Building Maintenance - Planned,1028,East Leake,163.15 
Nottinghamshire Fire and Rescue Service ,102280,Amptron Electrical Services,Amptron Electrical Services,Operational Responses,1,202307,30/09/2022,P6,9103160,"-12,165.30 ","12,165.30 ",2050,Building Maintenance - Planned,1029,Highfields Station,973.24 
Nottinghamshire Fire and Rescue Service ,102280,Amptron Electrical Services,Amptron Electrical Services,Management & Support Services,1,202307,30/09/2022,P6,9103160,"-12,165.30 ","12,165.30 ",2050,Building Maintenance - Planned,1030,Service Development Centre,"1,328.24 "
Nottinghamshire Fire and Rescue Service ,102280,Amptron Electrical Services,Amptron Electrical Services,Management & Support Services,1,202307,30/09/2022,P6,9103160,"-12,165.30 ","12,165.30 ",2050,Building Maintenance - Planned,1035,Headquarters,195.61 
Nottinghamshire Fire and Rescue Service ,102744,EDF Energy,EDF Energy,Operational Responses,1,202307,06/09/2022,P6,9102946,"-20,247.62 ","20,247.62 ",2100,Electricity,1003,London Road,"2,369.69 "
Nottinghamshire Fire and Rescue Service ,102744,EDF Energy,EDF Energy,Operational Responses,1,202307,06/09/2022,P6,9102946,"-20,247.62 ","20,247.62 ",2100,Electricity,1012,Retford,"1,361.44 "
Nottinghamshire Fire and Rescue Service ,102744,EDF Energy,EDF Energy,Operational Responses,1,202307,06/09/2022,P6,9102946,"-20,247.62 ","20,247.62 ",2100,Electricity,1016,Newark,948.41 
Nottinghamshire Fire and Rescue Service ,102744,EDF Energy,EDF Energy,Operational Responses,1,202307,06/09/2022,P6,9102946,"-20,247.62 ","20,247.62 ",2100,Electricity,1027,Carlton,"2,814.99 "
Nottinghamshire Fire and Rescue Service ,102744,EDF Energy,EDF Energy,Operational Responses,1,202307,06/09/2022,P6,9102946,"-20,247.62 ","20,247.62 ",2100,Electricity,1029,Highfields Station,"4,631.61 "
Nottinghamshire Fire and Rescue Service ,102744,EDF Energy,EDF Energy,Management & Support Services,1,202307,06/09/2022,P6,9102946,"-20,247.62 ","20,247.62 ",2100,Electricity,1030,Service Development Centre,"1,956.77 "
Nottinghamshire Fire and Rescue Service ,102744,EDF Energy,EDF Energy,Management & Support Services,1,202307,06/09/2022,P6,9102946,"-20,247.62 ","20,247.62 ",2100,Electricity,1035,Headquarters,"2,790.10 "
Nottinghamshire Fire and Rescue Service ,102744,EDF Energy,EDF Energy,Operational Responses,1,202307,01/09/2022,P6,9103230,-394.80 ,394.80 ,2100,Electricity,1002,Blidworth,329.04 
Nottinghamshire Fire and Rescue Service ,102744,EDF Energy,EDF Energy,Operational Responses,1,202307,01/09/2022,P6,9103231,-346.29 ,346.29 ,2100,Electricity,1028,East Leake,0.69 
Nottinghamshire Fire and Rescue Service ,102744,EDF Energy,EDF Energy,Operational Responses,1,202307,01/09/2022,P6,9103231,-346.29 ,346.29 ,2100,Electricity,1028,East Leake,288.00 
Nottinghamshire Fire and Rescue Service ,102744,EDF Energy,EDF Energy,Operational Responses,1,202307,01/09/2022,P6,9103232,-389.61 ,389.61 ,2100,Electricity,1008,Worksop,0.63 
Nottinghamshire Fire and Rescue Service ,102744,EDF Energy,EDF Energy,Operational Responses,1,202307,01/09/2022,P6,9103232,-389.61 ,389.61 ,2100,Electricity,1008,Worksop,324.15 
Nottinghamshire Fire and Rescue Service ,102744,EDF Energy,EDF Energy,Operational Responses,1,202307,01/09/2022,P6,9103234,-535.84 ,535.84 ,2100,Electricity,1015,Collingham,1.40 
Nottinghamshire Fire and Rescue Service ,102744,EDF Energy,EDF Energy,Operational Responses,1,202307,01/09/2022,P6,9103234,-535.84 ,535.84 ,2100,Electricity,1015,Collingham,445.37 
Nottinghamshire Fire and Rescue Service ,102744,EDF Energy,EDF Energy,Management & Support Services,1,202307,03/10/2022,P6,9103235,"-3,472.31 ","3,472.31 ",2100,Electricity,1035,Headquarters,"2,893.60 "
Nottinghamshire Fire and Rescue Service ,102744,EDF Energy,EDF Energy,Operational Responses,1,202307,03/10/2022,P6,9103236,"-2,924.42 ","2,924.42 ",2100,Electricity,1027,Carlton,"2,437.02 "
Nottinghamshire Fire and Rescue Service ,102744,EDF Energy,EDF Energy,Operational Responses,1,202307,03/10/2022,P6,9103237,"-2,899.03 ","2,899.03 ",2100,Electricity,1003,London Road,"2,415.85 "
Nottinghamshire Fire and Rescue Service ,102744,EDF Energy,EDF Energy,Operational Responses,1,202307,03/10/2022,P6,9103238,"-1,338.59 ","1,338.59 ",2100,Electricity,1016,Newark,"1,115.49 "
Nottinghamshire Fire and Rescue Service ,102744,EDF Energy,EDF Energy,Operational Responses,1,202307,03/10/2022,P6,9103239,"-1,923.08 ","1,923.08 ",2100,Electricity,1012,Retford,"1,602.57 "
Nottinghamshire Fire and Rescue Service ,102744,EDF Energy,EDF Energy,Management & Support Services,1,202307,03/10/2022,P6,9103240,"-2,480.48 ","2,480.48 ",2100,Electricity,1030,Service Development Centre,"2,067.06 "
Nottinghamshire Fire and Rescue Service ,102744,EDF Energy,EDF Energy,Operational Responses,1,202307,25/09/2022,P6,9103241,"-5,521.08 ","5,521.08 ",2100,Electricity,1029,Highfields Station,"4,600.90 "
Nottinghamshire Fire and Rescue Service ,102744,EDF Energy,EDF Energy,Operational Responses,1,202307,03/10/2022,P6,9103244,"-5,470.23 ","5,470.23 ",2100,Electricity,1029,Highfields Station,"4,558.53 "
Nottinghamshire Fire and Rescue Service ,102655,Nottingham City Council (City Treasurer),Nottingham City Council (City Treasurer),Operational Responses,1,202307,04/08/2022,P6,9102932,-709.30 ,709.30 ,2101,Gas,1003,London Road,591.08 
Nottinghamshire Fire and Rescue Service ,100055,Nottingham City Council,Nottingham City Council,Operational Responses,4,202307,05/10/2022,P6,9103038,-688.86 ,688.86 ,2101,Gas,1003,London Road,574.05 
Nottinghamshire Fire and Rescue Service ,104098,Total Gas & Power Limited,Total Gas & Power Limited,Operational Responses,5,202307,13/10/2022,P6,9103207,"-1,063.04 ","1,063.04 ",2101,Gas,1019,West Bridgford,885.87 
Nottinghamshire Fire and Rescue Service ,104098,Total Gas & Power Limited,Total Gas & Power Limited,Operational Responses,5,202307,13/10/2022,P6,9103208,"-1,580.99 ","1,580.99 ",2101,Gas,1008,Worksop,"1,317.49 "
Nottinghamshire Fire and Rescue Service ,104098,Total Gas & Power Limited,Total Gas & Power Limited,Operational Responses,5,202307,13/10/2022,P6,9103209,-517.18 ,517.18 ,2101,Gas,1024,Eastwood,492.55 
Nottinghamshire Fire and Rescue Service ,104098,Total Gas & Power Limited,Total Gas & Power Limited,Operational Responses,5,202307,13/10/2022,P6,9103210,-742.85 ,742.85 ,2101,Gas,1012,Retford,619.04 
Nottinghamshire Fire and Rescue Service ,104098,Total Gas & Power Limited,Total Gas & Power Limited,Operational Responses,5,202307,13/10/2022,P6,9103211,-324.37 ,324.37 ,2101,Gas,1016,Newark,308.92 
Nottinghamshire Fire and Rescue Service ,104098,Total Gas & Power Limited,Total Gas & Power Limited,Operational Responses,5,202307,13/10/2022,P6,9103213,"-2,072.77 ","2,072.77 ",2101,Gas,1001,Mansfield,"1,974.07 "
Nottinghamshire Fire and Rescue Service ,104098,Total Gas & Power Limited,Total Gas & Power Limited,Operational Responses,5,202307,13/10/2022,P6,9103214,-286.58 ,286.58 ,2101,Gas,1001,Mansfield,272.93 
Nottinghamshire Fire and Rescue Service ,104098,Total Gas & Power Limited,Total Gas & Power Limited,Operational Responses,5,202307,13/10/2022,P6,9103215,"-1,116.26 ","1,116.26 ",2101,Gas,1006,Edwinstowe,"1,063.10 "
Nottinghamshire Fire and Rescue Service ,104098,Total Gas & Power Limited,Total Gas & Power Limited,Operational Responses,5,202307,13/10/2022,P6,9103216,"-1,766.02 ","1,766.02 ",2101,Gas,1005,Ashfield,"1,471.68 "
Nottinghamshire Fire and Rescue Service ,104098,Total Gas & Power Limited,Total Gas & Power Limited,Operational Responses,5,202307,13/10/2022,P6,9103222,-919.47 ,919.47 ,2101,Gas,1026,Arnold,766.23 
Nottinghamshire Fire and Rescue Service ,104098,Total Gas & Power Limited,Total Gas & Power Limited,Operational Responses,5,202307,13/10/2022,P6,9103223,-730.61 ,730.61 ,2101,Gas,1016,Newark,695.82 
Nottinghamshire Fire and Rescue Service ,104098,Total Gas & Power Limited,Total Gas & Power Limited,Operational Responses,5,202307,13/10/2022,P6,9103224,-663.82 ,663.82 ,2101,Gas,1027,Carlton,632.21 
Nottinghamshire Fire and Rescue Service ,104098,Total Gas & Power Limited,Total Gas & Power Limited,Operational Responses,5,202307,13/10/2022,P6,9103225,-328.47 ,328.47 ,2101,Gas,1015,Collingham,312.83 
Nottinghamshire Fire and Rescue Service ,104098,Total Gas & Power Limited,Total Gas & Power Limited,Operational Responses,5,202307,13/10/2022,P6,9103226,-968.79 ,968.79 ,2101,Gas,1029,Highfields Station,807.32 
Nottinghamshire Fire and Rescue Service ,104098,Total Gas & Power Limited,Total Gas & Power Limited,Operational Responses,5,202307,13/10/2022,P6,9103229,-673.77 ,673.77 ,2101,Gas,1020,Stockhill,641.69 
Nottinghamshire Fire and Rescue Service ,104007,Castle Water Limited,Castle Water Limited,Management & Support Services,5,202307,24/11/2021,P6,9102953,-436.71 ,436.71 ,2103,Water Rates,1035,Headquarters,266.52 
Nottinghamshire Fire and Rescue Service ,104007,Castle Water Limited,Castle Water Limited,Management & Support Services,5,202307,02/02/2022,P6,9102954,-347.98 ,347.98 ,2103,Water Rates,1035,Headquarters,1.99 
Nottinghamshire Fire and Rescue Service ,104007,Castle Water Limited,Castle Water Limited,Management & Support Services,5,202307,02/02/2022,P6,9102954,-347.98 ,347.98 ,2103,Water Rates,1035,Headquarters,210.94 
Nottinghamshire Fire and Rescue Service ,104007,Castle Water Limited,Castle Water Limited,Management & Support Services,5,202307,06/06/2022,P6,9102955,-385.54 ,385.54 ,2103,Water Rates,1035,Headquarters,1.34 
Nottinghamshire Fire and Rescue Service ,104007,Castle Water Limited,Castle Water Limited,Management & Support Services,5,202307,06/06/2022,P6,9102955,-385.54 ,385.54 ,2103,Water Rates,1035,Headquarters,227.17 
Nottinghamshire Fire and Rescue Service ,104007,Castle Water Limited,Castle Water Limited,Management & Support Services,5,202307,04/04/2022,P6,9102956,-420.06 ,420.06 ,2103,Water Rates,1035,Headquarters,44.37 
Nottinghamshire Fire and Rescue Service ,104007,Castle Water Limited,Castle Water Limited,Management & Support Services,5,202307,04/04/2022,P6,9102956,-420.06 ,420.06 ,2103,Water Rates,1035,Headquarters,222.15 
Nottinghamshire Fire and Rescue Service ,102276,Water Plus Limited (Payments Centre),Water Plus Limited (Payments Centre),Operational Responses,1,202307,23/07/2022,P6,9103242,"-1,253.67 ","1,253.67 ",2103,Water Rates,1008,Worksop,651.98 
Nottinghamshire Fire and Rescue Service ,102276,Water Plus Limited (Payments Centre),Water Plus Limited (Payments Centre),Operational Responses,1,202307,24/08/2022,P6,9103243,-311.48 ,311.48 ,2103,Water Rates,1008,Worksop,161.46 
Nottinghamshire Fire and Rescue Service ,104007,Castle Water Limited,Castle Water Limited,Operational Responses,5,202307,19/07/2022,P6,9102931,"1,065.63 ","-1,065.63 ",2103,Water Rates,1016,Newark,-652.49 
Nottinghamshire Fire and Rescue Service ,104007,Castle Water Limited,Castle Water Limited,Operational Responses,5,202307,19/07/2022,P6,9102931,"1,065.63 ","-1,065.63 ",2103,Water Rates,1016,Newark,2.15 
Nottinghamshire Fire and Rescue Service ,104007,Castle Water Limited,Castle Water Limited,Management & Support Services,5,202307,24/11/2021,P6,9102953,-436.71 ,436.71 ,2104,Sewerage and Environmental,1035,Headquarters,170.19 
Nottinghamshire Fire and Rescue Service ,104007,Castle Water Limited,Castle Water Limited,Management & Support Services,5,202307,02/02/2022,P6,9102954,-347.98 ,347.98 ,2104,Sewerage and Environmental,1035,Headquarters,135.05 
Nottinghamshire Fire and Rescue Service ,104007,Castle Water Limited,Castle Water Limited,Management & Support Services,5,202307,06/06/2022,P6,9102955,-385.54 ,385.54 ,2104,Sewerage and Environmental,1035,Headquarters,157.03 
Nottinghamshire Fire and Rescue Service ,104007,Castle Water Limited,Castle Water Limited,Management & Support Services,5,202307,04/04/2022,P6,9102956,-420.06 ,420.06 ,2104,Sewerage and Environmental,1035,Headquarters,153.54 
Nottinghamshire Fire and Rescue Service ,102276,Water Plus Limited (Payments Centre),Water Plus Limited (Payments Centre),Operational Responses,1,202307,23/07/2022,P6,9103242,"-1,253.67 ","1,253.67 ",2104,Sewerage and Environmental,1008,Worksop,12.57 
Nottinghamshire Fire and Rescue Service ,102276,Water Plus Limited (Payments Centre),Water Plus Limited (Payments Centre),Operational Responses,1,202307,23/07/2022,P6,9103242,"-1,253.67 ","1,253.67 ",2104,Sewerage and Environmental,1008,Worksop,458.72 
Nottinghamshire Fire and Rescue Service ,102276,Water Plus Limited (Payments Centre),Water Plus Limited (Payments Centre),Operational Responses,1,202307,24/08/2022,P6,9103243,-311.48 ,311.48 ,2104,Sewerage and Environmental,1008,Worksop,3.09 
Nottinghamshire Fire and Rescue Service ,102276,Water Plus Limited (Payments Centre),Water Plus Limited (Payments Centre),Operational Responses,1,202307,24/08/2022,P6,9103243,-311.48 ,311.48 ,2104,Sewerage and Environmental,1008,Worksop,114.64 
Nottinghamshire Fire and Rescue Service ,104007,Castle Water Limited,Castle Water Limited,Operational Responses,5,202307,19/07/2022,P6,9102931,"1,065.63 ","-1,065.63 ",2104,Sewerage and Environmental,1016,Newark,-284.77 
Nottinghamshire Fire and Rescue Service ,101812,A B Waste Disposal Ltd,A B Waste Disposal Ltd,Management & Support Services,1,202307,30/09/2022,P6,9103044,-276.00 ,276.00 ,2106,Refuse / Trade Waste Collection,1030,Service Development Centre,230.00 
Nottinghamshire Fire and Rescue Service ,103280,Shred IT Limited,Shred IT Limited,Operational Responses,5,202307,30/09/2022,P6,9103054,"-1,581.40 ","1,581.40 ",2106,Refuse / Trade Waste Collection,1005,Ashfield,40.00 
Nottinghamshire Fire and Rescue Service ,103280,Shred IT Limited,Shred IT Limited,Operational Responses,5,202307,30/09/2022,P6,9103054,"-1,581.40 ","1,581.40 ",2106,Refuse / Trade Waste Collection,1006,Edwinstowe,40.00 
Nottinghamshire Fire and Rescue Service ,103280,Shred IT Limited,Shred IT Limited,Operational Responses,5,202307,30/09/2022,P6,9103054,"-1,581.40 ","1,581.40 ",2106,Refuse / Trade Waste Collection,1008,Worksop,40.00 
Nottinghamshire Fire and Rescue Service ,103280,Shred IT Limited,Shred IT Limited,Operational Responses,5,202307,30/09/2022,P6,9103054,"-1,581.40 ","1,581.40 ",2106,Refuse / Trade Waste Collection,1012,Retford,40.00 
Nottinghamshire Fire and Rescue Service ,103280,Shred IT Limited,Shred IT Limited,Operational Responses,5,202307,30/09/2022,P6,9103054,"-1,581.40 ","1,581.40 ",2106,Refuse / Trade Waste Collection,1016,Newark,40.00 
Nottinghamshire Fire and Rescue Service ,103280,Shred IT Limited,Shred IT Limited,Operational Responses,5,202307,30/09/2022,P6,9103054,"-1,581.40 ","1,581.40 ",2106,Refuse / Trade Waste Collection,1019,West Bridgford,40.00 
Nottinghamshire Fire and Rescue Service ,103280,Shred IT Limited,Shred IT Limited,Operational Responses,5,202307,30/09/2022,P6,9103054,"-1,581.40 ","1,581.40 ",2106,Refuse / Trade Waste Collection,1020,Stockhill,40.00 
Nottinghamshire Fire and Rescue Service ,103280,Shred IT Limited,Shred IT Limited,Operational Responses,5,202307,30/09/2022,P6,9103054,"-1,581.40 ","1,581.40 ",2106,Refuse / Trade Waste Collection,1026,Arnold,40.00 
Nottinghamshire Fire and Rescue Service ,103280,Shred IT Limited,Shred IT Limited,Operational Responses,5,202307,30/09/2022,P6,9103054,"-1,581.40 ","1,581.40 ",2106,Refuse / Trade Waste Collection,1029,Highfields Station,40.00 
Nottinghamshire Fire and Rescue Service ,103280,Shred IT Limited,Shred IT Limited,Management & Support Services,5,202307,30/09/2022,P6,9103054,"-1,581.40 ","1,581.40 ",2106,Refuse / Trade Waste Collection,2086,Procurement,957.83 
Nottinghamshire Fire and Rescue Service ,100557,NCC Sundry Debtors,NCC Sundry Debtors,Management & Support Services,4,202307,30/09/2022,P6,9102924,-818.40 ,818.40 ,2201,Grounds Maintenance,1035,Headquarters,682.00 
Nottinghamshire Fire and Rescue Service ,100557,NCC Sundry Debtors,NCC Sundry Debtors,Operational Responses,4,202307,01/10/2022,P6,9102968,"-1,805.45 ","1,805.45 ",2201,Grounds Maintenance,1001,Mansfield,39.60 
Nottinghamshire Fire and Rescue Service ,100557,NCC Sundry Debtors,NCC Sundry Debtors,Operational Responses,4,202307,01/10/2022,P6,9102968,"-1,805.45 ","1,805.45 ",2201,Grounds Maintenance,1002,Blidworth,67.84 
Nottinghamshire Fire and Rescue Service ,100557,NCC Sundry Debtors,NCC Sundry Debtors,Operational Responses,4,202307,01/10/2022,P6,9102968,"-1,805.45 ","1,805.45 ",2201,Grounds Maintenance,1003,London Road,36.40 
Nottinghamshire Fire and Rescue Service ,100557,NCC Sundry Debtors,NCC Sundry Debtors,Operational Responses,4,202307,01/10/2022,P6,9102968,"-1,805.45 ","1,805.45 ",2201,Grounds Maintenance,1005,Ashfield,182.04 
Nottinghamshire Fire and Rescue Service ,100557,NCC Sundry Debtors,NCC Sundry Debtors,Operational Responses,4,202307,01/10/2022,P6,9102968,"-1,805.45 ","1,805.45 ",2201,Grounds Maintenance,1006,Edwinstowe,38.51 
Nottinghamshire Fire and Rescue Service ,100557,NCC Sundry Debtors,NCC Sundry Debtors,Operational Responses,4,202307,01/10/2022,P6,9102968,"-1,805.45 ","1,805.45 ",2201,Grounds Maintenance,1007,Warsop,3.32 
Nottinghamshire Fire and Rescue Service ,100557,NCC Sundry Debtors,NCC Sundry Debtors,Operational Responses,4,202307,01/10/2022,P6,9102968,"-1,805.45 ","1,805.45 ",2201,Grounds Maintenance,1008,Worksop,35.95 
Nottinghamshire Fire and Rescue Service ,100557,NCC Sundry Debtors,NCC Sundry Debtors,Operational Responses,4,202307,01/10/2022,P6,9102968,"-1,805.45 ","1,805.45 ",2201,Grounds Maintenance,1010,Harworth,42.26 
Nottinghamshire Fire and Rescue Service ,100557,NCC Sundry Debtors,NCC Sundry Debtors,Operational Responses,4,202307,01/10/2022,P6,9102968,"-1,805.45 ","1,805.45 ",2201,Grounds Maintenance,1011,Misterton,39.23 
Nottinghamshire Fire and Rescue Service ,100557,NCC Sundry Debtors,NCC Sundry Debtors,Operational Responses,4,202307,01/10/2022,P6,9102968,"-1,805.45 ","1,805.45 ",2201,Grounds Maintenance,1012,Retford,26.31 
Nottinghamshire Fire and Rescue Service ,100557,NCC Sundry Debtors,NCC Sundry Debtors,Operational Responses,4,202307,01/10/2022,P6,9102968,"-1,805.45 ","1,805.45 ",2201,Grounds Maintenance,1013,Tuxford,27.35 
Nottinghamshire Fire and Rescue Service ,100557,NCC Sundry Debtors,NCC Sundry Debtors,Operational Responses,4,202307,01/10/2022,P6,9102968,"-1,805.45 ","1,805.45 ",2201,Grounds Maintenance,1014,Southwell,26.00 
Nottinghamshire Fire and Rescue Service ,100557,NCC Sundry Debtors,NCC Sundry Debtors,Operational Responses,4,202307,01/10/2022,P6,9102968,"-1,805.45 ","1,805.45 ",2201,Grounds Maintenance,1015,Collingham,15.21 
Nottinghamshire Fire and Rescue Service ,100557,NCC Sundry Debtors,NCC Sundry Debtors,Operational Responses,4,202307,01/10/2022,P6,9102968,"-1,805.45 ","1,805.45 ",2201,Grounds Maintenance,1016,Newark,37.78 
Nottinghamshire Fire and Rescue Service ,100557,NCC Sundry Debtors,NCC Sundry Debtors,Operational Responses,4,202307,01/10/2022,P6,9102968,"-1,805.45 ","1,805.45 ",2201,Grounds Maintenance,1017,Bingham,64.08 
Nottinghamshire Fire and Rescue Service ,100557,NCC Sundry Debtors,NCC Sundry Debtors,Operational Responses,4,202307,01/10/2022,P6,9102968,"-1,805.45 ","1,805.45 ",2201,Grounds Maintenance,1019,West Bridgford,108.64 
Nottinghamshire Fire and Rescue Service ,100557,NCC Sundry Debtors,NCC Sundry Debtors,Operational Responses,4,202307,01/10/2022,P6,9102968,"-1,805.45 ","1,805.45 ",2201,Grounds Maintenance,1020,Stockhill,216.10 
Nottinghamshire Fire and Rescue Service ,100557,NCC Sundry Debtors,NCC Sundry Debtors,Operational Responses,4,202307,01/10/2022,P6,9102968,"-1,805.45 ","1,805.45 ",2201,Grounds Maintenance,1023,Stapleford,80.50 
Nottinghamshire Fire and Rescue Service ,100557,NCC Sundry Debtors,NCC Sundry Debtors,Operational Responses,4,202307,01/10/2022,P6,9102968,"-1,805.45 ","1,805.45 ",2201,Grounds Maintenance,1024,Eastwood,27.09 
Nottinghamshire Fire and Rescue Service ,100557,NCC Sundry Debtors,NCC Sundry Debtors,Operational Responses,4,202307,01/10/2022,P6,9102968,"-1,805.45 ","1,805.45 ",2201,Grounds Maintenance,1026,Arnold,11.31 
Nottinghamshire Fire and Rescue Service ,100557,NCC Sundry Debtors,NCC Sundry Debtors,Operational Responses,4,202307,01/10/2022,P6,9102968,"-1,805.45 ","1,805.45 ",2201,Grounds Maintenance,1027,Carlton,10.21 
Nottinghamshire Fire and Rescue Service ,100557,NCC Sundry Debtors,NCC Sundry Debtors,Operational Responses,4,202307,01/10/2022,P6,9102968,"-1,805.45 ","1,805.45 ",2201,Grounds Maintenance,1028,East Leake,132.86 
Nottinghamshire Fire and Rescue Service ,100557,NCC Sundry Debtors,NCC Sundry Debtors,Operational Responses,4,202307,01/10/2022,P6,9102968,"-1,805.45 ","1,805.45 ",2201,Grounds Maintenance,1029,Highfields Station,79.20 
Nottinghamshire Fire and Rescue Service ,100557,NCC Sundry Debtors,NCC Sundry Debtors,Management & Support Services,4,202307,01/10/2022,P6,9102968,"-1,805.45 ","1,805.45 ",2201,Grounds Maintenance,1030,Service Development Centre,156.75 
Nottinghamshire Fire and Rescue Service ,100557,NCC Sundry Debtors,NCC Sundry Debtors,Management & Support Services,4,202307,05/09/2022,P6,9103018,-474.00 ,474.00 ,2201,Grounds Maintenance,1035,Headquarters,395.00 
Nottinghamshire Fire and Rescue Service ,100557,NCC Sundry Debtors,NCC Sundry Debtors,Management & Support Services,4,202307,30/09/2022,P6,9102912,-818.40 ,818.40 ,2204,Contract Cleaning,1035,Headquarters,682.00 
Nottinghamshire Fire and Rescue Service ,100557,NCC Sundry Debtors,NCC Sundry Debtors,Operational Responses,4,202307,01/10/2022,P6,9102925,"-33,678.30 ","33,678.30 ",2204,Contract Cleaning,1001,Mansfield,"2,336.96 "
Nottinghamshire Fire and Rescue Service ,100557,NCC Sundry Debtors,NCC Sundry Debtors,Operational Responses,4,202307,01/10/2022,P6,9102925,"-33,678.30 ","33,678.30 ",2204,Contract Cleaning,1002,Blidworth,132.59 
Nottinghamshire Fire and Rescue Service ,100557,NCC Sundry Debtors,NCC Sundry Debtors,Operational Responses,4,202307,01/10/2022,P6,9102925,"-33,678.30 ","33,678.30 ",2204,Contract Cleaning,1003,London Road,"2,579.47 "
Nottinghamshire Fire and Rescue Service ,100557,NCC Sundry Debtors,NCC Sundry Debtors,Operational Responses,4,202307,01/10/2022,P6,9102925,"-33,678.30 ","33,678.30 ",2204,Contract Cleaning,1005,Ashfield,"1,309.26 "
Nottinghamshire Fire and Rescue Service ,100557,NCC Sundry Debtors,NCC Sundry Debtors,Operational Responses,4,202307,01/10/2022,P6,9102925,"-33,678.30 ","33,678.30 ",2204,Contract Cleaning,1006,Edwinstowe,"1,010.88 "
Nottinghamshire Fire and Rescue Service ,100557,NCC Sundry Debtors,NCC Sundry Debtors,Operational Responses,4,202307,01/10/2022,P6,9102925,"-33,678.30 ","33,678.30 ",2204,Contract Cleaning,1007,Warsop,165.59 
Nottinghamshire Fire and Rescue Service ,100557,NCC Sundry Debtors,NCC Sundry Debtors,Operational Responses,4,202307,01/10/2022,P6,9102925,"-33,678.30 ","33,678.30 ",2204,Contract Cleaning,1008,Worksop,"1,645.61 "
Nottinghamshire Fire and Rescue Service ,100557,NCC Sundry Debtors,NCC Sundry Debtors,Operational Responses,4,202307,01/10/2022,P6,9102925,"-33,678.30 ","33,678.30 ",2204,Contract Cleaning,1010,Harworth,331.27 
Nottinghamshire Fire and Rescue Service ,100557,NCC Sundry Debtors,NCC Sundry Debtors,Operational Responses,4,202307,01/10/2022,P6,9102925,"-33,678.30 ","33,678.30 ",2204,Contract Cleaning,1011,Misterton,265.08 
Nottinghamshire Fire and Rescue Service ,100557,NCC Sundry Debtors,NCC Sundry Debtors,Operational Responses,4,202307,01/10/2022,P6,9102925,"-33,678.30 ","33,678.30 ",2204,Contract Cleaning,1012,Retford,"1,673.76 "
Nottinghamshire Fire and Rescue Service ,100557,NCC Sundry Debtors,NCC Sundry Debtors,Operational Responses,4,202307,01/10/2022,P6,9102925,"-33,678.30 ","33,678.30 ",2204,Contract Cleaning,1013,Tuxford,198.69 
Nottinghamshire Fire and Rescue Service ,100557,NCC Sundry Debtors,NCC Sundry Debtors,Operational Responses,4,202307,01/10/2022,P6,9102925,"-33,678.30 ","33,678.30 ",2204,Contract Cleaning,1014,Southwell,298.18 
Nottinghamshire Fire and Rescue Service ,100557,NCC Sundry Debtors,NCC Sundry Debtors,Operational Responses,4,202307,01/10/2022,P6,9102925,"-33,678.30 ","33,678.30 ",2204,Contract Cleaning,1015,Collingham,298.18 
Nottinghamshire Fire and Rescue Service ,100557,NCC Sundry Debtors,NCC Sundry Debtors,Operational Responses,4,202307,01/10/2022,P6,9102925,"-33,678.30 ","33,678.30 ",2204,Contract Cleaning,1016,Newark,"1,309.26 "
Nottinghamshire Fire and Rescue Service ,100557,NCC Sundry Debtors,NCC Sundry Debtors,Operational Responses,4,202307,01/10/2022,P6,9102925,"-33,678.30 ","33,678.30 ",2204,Contract Cleaning,1017,Bingham,198.88 
Nottinghamshire Fire and Rescue Service ,100557,NCC Sundry Debtors,NCC Sundry Debtors,Operational Responses,4,202307,01/10/2022,P6,9102925,"-33,678.30 ","33,678.30 ",2204,Contract Cleaning,1019,West Bridgford,"2,005.00 "
Nottinghamshire Fire and Rescue Service ,100557,NCC Sundry Debtors,NCC Sundry Debtors,Operational Responses,4,202307,01/10/2022,P6,9102925,"-33,678.30 ","33,678.30 ",2204,Contract Cleaning,1020,Stockhill,"1,640.62 "
Nottinghamshire Fire and Rescue Service ,100557,NCC Sundry Debtors,NCC Sundry Debtors,Operational Responses,4,202307,01/10/2022,P6,9102925,"-33,678.30 ","33,678.30 ",2204,Contract Cleaning,1023,Stapleford,496.91 
Nottinghamshire Fire and Rescue Service ,100557,NCC Sundry Debtors,NCC Sundry Debtors,Operational Responses,4,202307,01/10/2022,P6,9102925,"-33,678.30 ","33,678.30 ",2204,Contract Cleaning,1024,Eastwood,331.22 
Nottinghamshire Fire and Rescue Service ,100557,NCC Sundry Debtors,NCC Sundry Debtors,Operational Responses,4,202307,01/10/2022,P6,9102925,"-33,678.30 ","33,678.30 ",2204,Contract Cleaning,1026,Arnold,"1,226.43 "
Nottinghamshire Fire and Rescue Service ,100557,NCC Sundry Debtors,NCC Sundry Debtors,Operational Responses,4,202307,01/10/2022,P6,9102925,"-33,678.30 ","33,678.30 ",2204,Contract Cleaning,1027,Carlton,"2,303.82 "
Nottinghamshire Fire and Rescue Service ,100557,NCC Sundry Debtors,NCC Sundry Debtors,Operational Responses,4,202307,01/10/2022,P6,9102925,"-33,678.30 ","33,678.30 ",2204,Contract Cleaning,1028,East Leake,198.74 
Nottinghamshire Fire and Rescue Service ,100557,NCC Sundry Debtors,NCC Sundry Debtors,Operational Responses,4,202307,01/10/2022,P6,9102925,"-33,678.30 ","33,678.30 ",2204,Contract Cleaning,1029,Highfields Station,"4,319.04 "
Nottinghamshire Fire and Rescue Service ,100557,NCC Sundry Debtors,NCC Sundry Debtors,Management & Support Services,4,202307,01/10/2022,P6,9102925,"-33,678.30 ","33,678.30 ",2204,Contract Cleaning,1030,Service Development Centre,"1,789.81 "
Nottinghamshire Fire and Rescue Service ,100557,NCC Sundry Debtors,NCC Sundry Debtors,Operational Responses,4,202307,01/10/2022,P6,9102970,-406.01 ,406.01 ,2204,Contract Cleaning,1001,Mansfield,15.42 
Nottinghamshire Fire and Rescue Service ,100557,NCC Sundry Debtors,NCC Sundry Debtors,Operational Responses,4,202307,01/10/2022,P6,9102970,-406.01 ,406.01 ,2204,Contract Cleaning,1002,Blidworth,11.57 
Nottinghamshire Fire and Rescue Service ,100557,NCC Sundry Debtors,NCC Sundry Debtors,Operational Responses,4,202307,01/10/2022,P6,9102970,-406.01 ,406.01 ,2204,Contract Cleaning,1003,London Road,14.46 
Nottinghamshire Fire and Rescue Service ,100557,NCC Sundry Debtors,NCC Sundry Debtors,Operational Responses,4,202307,01/10/2022,P6,9102970,-406.01 ,406.01 ,2204,Contract Cleaning,1005,Ashfield,15.42 
Nottinghamshire Fire and Rescue Service ,100557,NCC Sundry Debtors,NCC Sundry Debtors,Operational Responses,4,202307,01/10/2022,P6,9102970,-406.01 ,406.01 ,2204,Contract Cleaning,1006,Edwinstowe,11.57 
Nottinghamshire Fire and Rescue Service ,100557,NCC Sundry Debtors,NCC Sundry Debtors,Operational Responses,4,202307,01/10/2022,P6,9102970,-406.01 ,406.01 ,2204,Contract Cleaning,1007,Warsop,11.57 
Nottinghamshire Fire and Rescue Service ,100557,NCC Sundry Debtors,NCC Sundry Debtors,Operational Responses,4,202307,01/10/2022,P6,9102970,-406.01 ,406.01 ,2204,Contract Cleaning,1008,Worksop,15.42 
Nottinghamshire Fire and Rescue Service ,100557,NCC Sundry Debtors,NCC Sundry Debtors,Operational Responses,4,202307,01/10/2022,P6,9102970,-406.01 ,406.01 ,2204,Contract Cleaning,1010,Harworth,11.57 
Nottinghamshire Fire and Rescue Service ,100557,NCC Sundry Debtors,NCC Sundry Debtors,Operational Responses,4,202307,01/10/2022,P6,9102970,-406.01 ,406.01 ,2204,Contract Cleaning,1011,Misterton,11.57 
Nottinghamshire Fire and Rescue Service ,100557,NCC Sundry Debtors,NCC Sundry Debtors,Operational Responses,4,202307,01/10/2022,P6,9102970,-406.01 ,406.01 ,2204,Contract Cleaning,1012,Retford,11.57 
Nottinghamshire Fire and Rescue Service ,100557,NCC Sundry Debtors,NCC Sundry Debtors,Operational Responses,4,202307,01/10/2022,P6,9102970,-406.01 ,406.01 ,2204,Contract Cleaning,1013,Tuxford,11.57 
Nottinghamshire Fire and Rescue Service ,100557,NCC Sundry Debtors,NCC Sundry Debtors,Operational Responses,4,202307,01/10/2022,P6,9102970,-406.01 ,406.01 ,2204,Contract Cleaning,1014,Southwell,11.57 
Nottinghamshire Fire and Rescue Service ,100557,NCC Sundry Debtors,NCC Sundry Debtors,Operational Responses,4,202307,01/10/2022,P6,9102970,-406.01 ,406.01 ,2204,Contract Cleaning,1015,Collingham,11.57 
Nottinghamshire Fire and Rescue Service ,100557,NCC Sundry Debtors,NCC Sundry Debtors,Operational Responses,4,202307,01/10/2022,P6,9102970,-406.01 ,406.01 ,2204,Contract Cleaning,1016,Newark,15.42 
Nottinghamshire Fire and Rescue Service ,100557,NCC Sundry Debtors,NCC Sundry Debtors,Operational Responses,4,202307,01/10/2022,P6,9102970,-406.01 ,406.01 ,2204,Contract Cleaning,1017,Bingham,11.57 
Nottinghamshire Fire and Rescue Service ,100557,NCC Sundry Debtors,NCC Sundry Debtors,Operational Responses,4,202307,01/10/2022,P6,9102970,-406.01 ,406.01 ,2204,Contract Cleaning,1019,West Bridgford,15.42 
Nottinghamshire Fire and Rescue Service ,100557,NCC Sundry Debtors,NCC Sundry Debtors,Operational Responses,4,202307,01/10/2022,P6,9102970,-406.01 ,406.01 ,2204,Contract Cleaning,1020,Stockhill,15.42 
Nottinghamshire Fire and Rescue Service ,100557,NCC Sundry Debtors,NCC Sundry Debtors,Operational Responses,4,202307,01/10/2022,P6,9102970,-406.01 ,406.01 ,2204,Contract Cleaning,1023,Stapleford,11.57 
Nottinghamshire Fire and Rescue Service ,100557,NCC Sundry Debtors,NCC Sundry Debtors,Operational Responses,4,202307,01/10/2022,P6,9102970,-406.01 ,406.01 ,2204,Contract Cleaning,1024,Eastwood,11.57 
Nottinghamshire Fire and Rescue Service ,100557,NCC Sundry Debtors,NCC Sundry Debtors,Operational Responses,4,202307,01/10/2022,P6,9102970,-406.01 ,406.01 ,2204,Contract Cleaning,1026,Arnold,15.42 
Nottinghamshire Fire and Rescue Service ,100557,NCC Sundry Debtors,NCC Sundry Debtors,Operational Responses,4,202307,01/10/2022,P6,9102970,-406.01 ,406.01 ,2204,Contract Cleaning,1027,Carlton,15.42 
Nottinghamshire Fire and Rescue Service ,100557,NCC Sundry Debtors,NCC Sundry Debtors,Operational Responses,4,202307,01/10/2022,P6,9102970,-406.01 ,406.01 ,2204,Contract Cleaning,1028,East Leake,11.57 
Nottinghamshire Fire and Rescue Service ,100557,NCC Sundry Debtors,NCC Sundry Debtors,Operational Responses,4,202307,01/10/2022,P6,9102970,-406.01 ,406.01 ,2204,Contract Cleaning,1029,Highfields Station,15.42 
Nottinghamshire Fire and Rescue Service ,100557,NCC Sundry Debtors,NCC Sundry Debtors,Management & Support Services,4,202307,01/10/2022,P6,9102970,-406.01 ,406.01 ,2204,Contract Cleaning,1030,Service Development Centre,34.69 
Nottinghamshire Fire and Rescue Service ,104019,Art Cleaning Midlands Ltd,Art Cleaning Midlands Ltd,Operational Responses,5,202307,14/09/2022,P6,9103019,"-4,228.80 ","4,228.80 ",2204,Contract Cleaning,1029,Highfields Station,"3,524.00 "
Nottinghamshire Fire and Rescue Service ,100557,NCC Sundry Debtors,NCC Sundry Debtors,Operational Responses,4,202307,01/10/2022,P6,9102969,-409.48 ,409.48 ,2205,Window Cleaning,1001,Mansfield,19.27 
Nottinghamshire Fire and Rescue Service ,100557,NCC Sundry Debtors,NCC Sundry Debtors,Operational Responses,4,202307,01/10/2022,P6,9102969,-409.48 ,409.48 ,2205,Window Cleaning,1002,Blidworth,11.57 
Nottinghamshire Fire and Rescue Service ,100557,NCC Sundry Debtors,NCC Sundry Debtors,Operational Responses,4,202307,01/10/2022,P6,9102969,-409.48 ,409.48 ,2205,Window Cleaning,1003,London Road,23.13 
Nottinghamshire Fire and Rescue Service ,100557,NCC Sundry Debtors,NCC Sundry Debtors,Operational Responses,4,202307,01/10/2022,P6,9102969,-409.48 ,409.48 ,2205,Window Cleaning,1005,Ashfield,11.57 
Nottinghamshire Fire and Rescue Service ,100557,NCC Sundry Debtors,NCC Sundry Debtors,Operational Responses,4,202307,01/10/2022,P6,9102969,-409.48 ,409.48 ,2205,Window Cleaning,1006,Edwinstowe,17.35 
Nottinghamshire Fire and Rescue Service ,100557,NCC Sundry Debtors,NCC Sundry Debtors,Operational Responses,4,202307,01/10/2022,P6,9102969,-409.48 ,409.48 ,2205,Window Cleaning,1007,Warsop,9.64 
Nottinghamshire Fire and Rescue Service ,100557,NCC Sundry Debtors,NCC Sundry Debtors,Operational Responses,4,202307,01/10/2022,P6,9102969,-409.48 ,409.48 ,2205,Window Cleaning,1008,Worksop,11.57 
Nottinghamshire Fire and Rescue Service ,100557,NCC Sundry Debtors,NCC Sundry Debtors,Operational Responses,4,202307,01/10/2022,P6,9102969,-409.48 ,409.48 ,2205,Window Cleaning,1010,Harworth,11.57 
Nottinghamshire Fire and Rescue Service ,100557,NCC Sundry Debtors,NCC Sundry Debtors,Operational Responses,4,202307,01/10/2022,P6,9102969,-409.48 ,409.48 ,2205,Window Cleaning,1011,Misterton,11.57 
Nottinghamshire Fire and Rescue Service ,100557,NCC Sundry Debtors,NCC Sundry Debtors,Operational Responses,4,202307,01/10/2022,P6,9102969,-409.48 ,409.48 ,2205,Window Cleaning,1012,Retford,15.42 
Nottinghamshire Fire and Rescue Service ,100557,NCC Sundry Debtors,NCC Sundry Debtors,Operational Responses,4,202307,01/10/2022,P6,9102969,-409.48 ,409.48 ,2205,Window Cleaning,1013,Tuxford,9.64 
Nottinghamshire Fire and Rescue Service ,100557,NCC Sundry Debtors,NCC Sundry Debtors,Operational Responses,4,202307,01/10/2022,P6,9102969,-409.48 ,409.48 ,2205,Window Cleaning,1014,Southwell,9.64 
Nottinghamshire Fire and Rescue Service ,100557,NCC Sundry Debtors,NCC Sundry Debtors,Operational Responses,4,202307,01/10/2022,P6,9102969,-409.48 ,409.48 ,2205,Window Cleaning,1015,Collingham,11.57 
Nottinghamshire Fire and Rescue Service ,100557,NCC Sundry Debtors,NCC Sundry Debtors,Operational Responses,4,202307,01/10/2022,P6,9102969,-409.48 ,409.48 ,2205,Window Cleaning,1016,Newark,11.57 
Nottinghamshire Fire and Rescue Service ,100557,NCC Sundry Debtors,NCC Sundry Debtors,Operational Responses,4,202307,01/10/2022,P6,9102969,-409.48 ,409.48 ,2205,Window Cleaning,1017,Bingham,11.57 
Nottinghamshire Fire and Rescue Service ,100557,NCC Sundry Debtors,NCC Sundry Debtors,Operational Responses,4,202307,01/10/2022,P6,9102969,-409.48 ,409.48 ,2205,Window Cleaning,1019,West Bridgford,13.49 
Nottinghamshire Fire and Rescue Service ,100557,NCC Sundry Debtors,NCC Sundry Debtors,Operational Responses,4,202307,01/10/2022,P6,9102969,-409.48 ,409.48 ,2205,Window Cleaning,1020,Stockhill,17.35 
Nottinghamshire Fire and Rescue Service ,100557,NCC Sundry Debtors,NCC Sundry Debtors,Operational Responses,4,202307,01/10/2022,P6,9102969,-409.48 ,409.48 ,2205,Window Cleaning,1023,Stapleford,11.57 
Nottinghamshire Fire and Rescue Service ,100557,NCC Sundry Debtors,NCC Sundry Debtors,Operational Responses,4,202307,01/10/2022,P6,9102969,-409.48 ,409.48 ,2205,Window Cleaning,1024,Eastwood,11.57 
Nottinghamshire Fire and Rescue Service ,100557,NCC Sundry Debtors,NCC Sundry Debtors,Operational Responses,4,202307,01/10/2022,P6,9102969,-409.48 ,409.48 ,2205,Window Cleaning,1026,Arnold,11.57 
Nottinghamshire Fire and Rescue Service ,100557,NCC Sundry Debtors,NCC Sundry Debtors,Operational Responses,4,202307,01/10/2022,P6,9102969,-409.48 ,409.48 ,2205,Window Cleaning,1027,Carlton,15.42 
Nottinghamshire Fire and Rescue Service ,100557,NCC Sundry Debtors,NCC Sundry Debtors,Operational Responses,4,202307,01/10/2022,P6,9102969,-409.48 ,409.48 ,2205,Window Cleaning,1028,East Leake,11.57 
Nottinghamshire Fire and Rescue Service ,100557,NCC Sundry Debtors,NCC Sundry Debtors,Operational Responses,4,202307,01/10/2022,P6,9102969,-409.48 ,409.48 ,2205,Window Cleaning,1029,Highfields Station,38.55 
Nottinghamshire Fire and Rescue Service ,100557,NCC Sundry Debtors,NCC Sundry Debtors,Management & Support Services,4,202307,01/10/2022,P6,9102969,-409.48 ,409.48 ,2205,Window Cleaning,1030,Service Development Centre,13.49 
Nottinghamshire Fire and Rescue Service ,104095,Hunter Apparel Solutions Limited,Hunter Apparel Solutions Limited,Management & Support Services,5,202307,31/03/2022,P6,9102911,"-2,815.08 ","2,815.08 ",3002,Purchase of Vehicle Equipment,2086,Procurement,"2,345.90 "
Nottinghamshire Fire and Rescue Service ,101803,Premier Hose Technologies Ltd,Premier Hose Technologies Ltd,Management & Support Services,1,202307,25/08/2022,P6,9102919,"-7,824.23 ","7,824.23 ",3002,Purchase of Vehicle Equipment,2084,Engineering,60.00 
Nottinghamshire Fire and Rescue Service ,101803,Premier Hose Technologies Ltd,Premier Hose Technologies Ltd,Management & Support Services,1,202307,25/08/2022,P6,9102919,"-7,824.23 ","7,824.23 ",3002,Purchase of Vehicle Equipment,2084,Engineering,"6,460.20 "
Nottinghamshire Fire and Rescue Service ,103820,VIA East Midlands Ltd,VIA East Midlands Ltd,Management & Support Services,5,202307,16/08/2022,P6,9103145,"-13,502.83 ","13,502.83 ",3100,Fleet Maintenance - Planned,2084,Engineering,"11,279.01 "
Nottinghamshire Fire and Rescue Service ,103820,VIA East Midlands Ltd,VIA East Midlands Ltd,Management & Support Services,5,202307,31/08/2022,P6,9103147,"-12,167.78 ","12,167.78 ",3100,Fleet Maintenance - Planned,2084,Engineering,"10,175.35 "
Nottinghamshire Fire and Rescue Service ,103820,VIA East Midlands Ltd,VIA East Midlands Ltd,Management & Support Services,5,202307,13/10/2022,P6,9103167,"-13,563.70 ","13,563.70 ",3100,Fleet Maintenance - Planned,2084,Engineering,373.10 
Nottinghamshire Fire and Rescue Service ,103820,VIA East Midlands Ltd,VIA East Midlands Ltd,Management & Support Services,5,202307,13/10/2022,P6,9103167,"-13,563.70 ","13,563.70 ",3100,Fleet Maintenance - Planned,2084,Engineering,"10,992.17 "
Nottinghamshire Fire and Rescue Service ,102364,Woodway Engineering Limited,Woodway Engineering Limited,Management & Support Services,1,202307,13/10/2022,P6,9103107,"-4,789.70 ","4,789.70 ",3101,Fleet Modification,2084,Engineering,"3,991.42 "
Nottinghamshire Fire and Rescue Service ,102280,Amptron Electrical Services,Amptron Electrical Services,Management & Support Services,1,202307,28/10/2022,P6,9103268,-840.00 ,840.00 ,3101,Fleet Modification,2084,Engineering,700.00 
Nottinghamshire Fire and Rescue Service ,101100,Angloco Limited,Angloco Limited,Management & Support Services,1,202307,27/08/2022,P6,9103025,"-1,527.44 ","1,527.44 ",3102,Vehicle Maintenance Outsourced,2084,Engineering,"1,272.87 "
Nottinghamshire Fire and Rescue Service ,102228,Keltruck Limited,Keltruck Limited,Management & Support Services,1,202307,06/10/2022,P6,9103028,"-1,114.20 ","1,114.20 ",3102,Vehicle Maintenance Outsourced,2084,Engineering,928.50 
Nottinghamshire Fire and Rescue Service ,102228,Keltruck Limited,Keltruck Limited,Management & Support Services,1,202307,04/10/2022,P6,9103116,"-1,074.72 ","1,074.72 ",3102,Vehicle Maintenance Outsourced,2084,Engineering,895.60 
Nottinghamshire Fire and Rescue Service ,101100,Angloco Limited,Angloco Limited,Management & Support Services,1,202307,30/09/2022,P6,9103136,"-7,751.22 ","7,751.22 ",3102,Vehicle Maintenance Outsourced,2084,Engineering,"6,459.35 "
Nottinghamshire Fire and Rescue Service ,102228,Keltruck Limited,Keltruck Limited,Management & Support Services,1,202307,18/10/2022,P6,9103140,"-1,425.60 ","1,425.60 ",3102,Vehicle Maintenance Outsourced,2084,Engineering,"1,188.00 "
Nottinghamshire Fire and Rescue Service ,103820,VIA East Midlands Ltd,VIA East Midlands Ltd,Management & Support Services,5,202307,16/08/2022,P6,9103144,"-44,298.10 ","44,298.10 ",3103,Fleet Maintenance - Unplanned,2084,Engineering,"36,915.08 "
Nottinghamshire Fire and Rescue Service ,103820,VIA East Midlands Ltd,VIA East Midlands Ltd,Management & Support Services,5,202307,31/08/2022,P6,9103164,"-28,191.01 ","28,191.01 ",3103,Fleet Maintenance - Unplanned,2084,Engineering,"23,492.51 "
Nottinghamshire Fire and Rescue Service ,103820,VIA East Midlands Ltd,VIA East Midlands Ltd,Management & Support Services,5,202307,13/10/2022,P6,9103166,"-58,468.39 ","58,468.39 ",3103,Fleet Maintenance - Unplanned,2084,Engineering,"48,723.66 "
Nottinghamshire Fire and Rescue Service ,103820,VIA East Midlands Ltd,VIA East Midlands Ltd,Management & Support Services,5,202307,16/08/2022,P6,9103143,"-1,581.54 ","1,581.54 ",3104,Fleet - Accident Repairs,2084,Engineering,"1,317.95 "
Nottinghamshire Fire and Rescue Service ,103820,VIA East Midlands Ltd,VIA East Midlands Ltd,Management & Support Services,5,202307,31/08/2022,P6,9103146,"-1,069.28 ","1,069.28 ",3104,Fleet - Accident Repairs,2084,Engineering,891.07 
Nottinghamshire Fire and Rescue Service ,103820,VIA East Midlands Ltd,VIA East Midlands Ltd,Management & Support Services,5,202307,13/10/2022,P6,9103165,"-1,333.43 ","1,333.43 ",3104,Fleet - Accident Repairs,2084,Engineering,"1,111.19 "
Nottinghamshire Fire and Rescue Service ,103766,CERTAS,CERTAS,Operational Responses,5,202307,03/10/2022,P6,9102965,"-14,571.72 ","14,571.72 ",3200,Fuel - Vehicle,1016,Newark,"12,143.10 "
Nottinghamshire Fire and Rescue Service ,103766,CERTAS,CERTAS,Operational Responses,5,202307,05/10/2022,P6,9103065,"-12,365.53 ","12,365.53 ",3200,Fuel - Vehicle,1006,Edwinstowe,"10,304.61 "
Nottinghamshire Fire and Rescue Service ,103766,CERTAS,CERTAS,Operational Responses,5,202307,05/10/2022,P6,9103066,"-13,719.71 ","13,719.71 ",3200,Fuel - Vehicle,1020,Stockhill,"11,433.09 "
Nottinghamshire Fire and Rescue Service ,103766,CERTAS,CERTAS,Operational Responses,5,202307,05/10/2022,P6,9103067,"-13,761.10 ","13,761.10 ",3200,Fuel - Vehicle,1003,London Road,"11,467.58 "
Nottinghamshire Fire and Rescue Service ,103766,CERTAS,CERTAS,Operational Responses,5,202307,10/10/2022,P6,9103089,"-2,624.57 ","2,624.57 ",3200,Fuel - Vehicle,1011,Misterton,"2,187.14 "
Nottinghamshire Fire and Rescue Service ,103766,CERTAS,CERTAS,Operational Responses,5,202307,07/10/2022,P6,9103138,"-12,968.83 ","12,968.83 ",3200,Fuel - Vehicle,1019,West Bridgford,"10,807.36 "
Nottinghamshire Fire and Rescue Service ,103766,CERTAS,CERTAS,Operational Responses,5,202307,10/10/2022,P6,9103139,"-12,256.18 ","12,256.18 ",3200,Fuel - Vehicle,1029,Highfields Station,"10,213.48 "
Nottinghamshire Fire and Rescue Service ,103766,CERTAS,CERTAS,Operational Responses,5,202307,25/10/2022,P6,9103249,"-16,638.48 ","16,638.48 ",3200,Fuel - Vehicle,1012,Retford,"13,865.40 "
Nottinghamshire Fire and Rescue Service ,103766,CERTAS,CERTAS,Operational Responses,5,202307,21/10/2022,P6,9103250,"-14,031.14 ","14,031.14 ",3200,Fuel - Vehicle,1005,Ashfield,"11,692.62 "
Nottinghamshire Fire and Rescue Service ,103942,The Lodge Tyre Co. Limited,The Lodge Tyre Co. Limited,Management & Support Services,5,202307,30/09/2022,P6,9103026,"-4,398.09 ","4,398.09 ",3202,Tyres,2084,Engineering,"3,665.09 "
Nottinghamshire Fire and Rescue Service ,103943,Teletrac Navman (UK) Limited,Teletrac Navman (UK) Limited,Management & Support Services,5,202307,01/10/2022,P6,9102951,"-1,071.96 ","1,071.96 ",3203,Motor Tax / Licenses,2084,Engineering,893.30 
Nottinghamshire Fire and Rescue Service ,100321,Drivercheck Ltd,Drivercheck Ltd,Management & Support Services,1,202307,31/08/2022,P6,9103077,-792.30 ,792.30 ,3203,Motor Tax / Licenses,2084,Engineering,660.25 
Nottinghamshire Fire and Rescue Service ,104128,LeasePlan UK Limited,LeasePlan UK Limited,Management & Support Services,5,202307,24/08/2022,P6,9103069,"-1,107.78 ","1,107.78 ",3400,Hire of Fleet Vehicles,2084,Engineering,923.16 
Nottinghamshire Fire and Rescue Service ,104128,LeasePlan UK Limited,LeasePlan UK Limited,Management & Support Services,5,202307,21/09/2022,P6,9103262,"-1,107.78 ","1,107.78 ",3400,Hire of Fleet Vehicles,2084,Engineering,923.16 
Nottinghamshire Fire and Rescue Service ,104241,ProMove UK Ltd,ProMove UK Ltd,Management & Support Services,5,202307,14/09/2022,P6,9102921,"-3,351.60 ","3,351.60 ",4000,Operational Equipment Purchase,2084,Engineering,"2,800.00 "
Nottinghamshire Fire and Rescue Service ,104240,Spectrum Healthcare (UK) Limited (ultimate Holding Co-Evacuation Equipment(UK) Limited),Spectrum Healthcare (UK) Limited (ultimate Holding Co-Evacuation Equipment(UK) Limited),Management & Support Services,5,202307,20/09/2022,P6,9102922,-253.62 ,253.62 ,4000,Operational Equipment Purchase,2084,Engineering,211.35 
Nottinghamshire Fire and Rescue Service ,102322,Sws Environmental Services Ltd,Sws Environmental Services Ltd,Management & Support Services,1,202307,14/10/2022,P6,9103126,-336.00 ,336.00 ,4000,Operational Equipment Purchase,2084,Engineering,280.00 
Nottinghamshire Fire and Rescue Service ,103094,Draeger Safety UK Limited,Draeger Safety UK Limited,Management & Support Services,5,202307,04/08/2022,P6,9102916,-640.14 ,640.14 ,4002,Breathing Apparatus,2084,Engineering,533.45 
Nottinghamshire Fire and Rescue Service ,102322,Sws Environmental Services Ltd,Sws Environmental Services Ltd,Management & Support Services,1,202307,31/08/2022,P6,9102920,"-1,302.00 ","1,302.00 ",4004,Fire Hose and Couplings,2084,Engineering,"1,085.00 "
Nottinghamshire Fire and Rescue Service ,102203,Flogas Britian Limited,Flogas Britian Limited,Management & Support Services,1,202307,15/09/2022,P6,9103005,"-1,173.22 ","1,173.22 ",4006,Oxygen and Other Gases,2084,Engineering,977.68 
Nottinghamshire Fire and Rescue Service ,102203,Flogas Britian Limited,Flogas Britian Limited,Management & Support Services,1,202307,15/10/2022,P6,9103123,"-1,173.22 ","1,173.22 ",4006,Oxygen and Other Gases,2084,Engineering,977.68 
Nottinghamshire Fire and Rescue Service ,103443,Terberg DTS UK Limited,Terberg DTS UK Limited,Management & Support Services,5,202307,09/08/2022,P6,9103017,"-4,108.11 ","4,108.11 ",4007,Equipment Annual Service,2084,Engineering,"1,988.00 "
Nottinghamshire Fire and Rescue Service ,101890,Survitec Service & Distribution Ltd,Survitec Service & Distribution Ltd,Management & Support Services,1,202307,18/10/2022,P6,9103131,"-1,068.43 ","1,068.43 ",4007,Equipment Annual Service,2084,Engineering,890.36 
Nottinghamshire Fire and Rescue Service ,100224,Delta Fire,Delta Fire,Management & Support Services,1,202307,24/08/2022,P6,9102918,"-2,167.60 ","2,167.60 ",4008,Equipment Reative Maintenance,2084,Engineering,"1,806.33 "
Nottinghamshire Fire and Rescue Service ,103443,Terberg DTS UK Limited,Terberg DTS UK Limited,Management & Support Services,5,202307,09/08/2022,P6,9103017,"-4,108.11 ","4,108.11 ",4008,Equipment Reative Maintenance,2084,Engineering,"1,435.42 "
Nottinghamshire Fire and Rescue Service ,103483,Risual Limited,Risual Limited,Management & Support Services,5,202307,30/09/2022,P6,9102961,-270.00 ,270.00 ,4101,Computer Software Maintenance Contracts,2097,ICT Service Operations,225.00 
Nottinghamshire Fire and Rescue Service ,103257,Midland HR,Midland HR,Management & Support Services,5,202307,27/09/2022,P6,9102962,"-10,659.00 ","10,659.00 ",4101,Computer Software Maintenance Contracts,2095,ICT Digital Transformation,"8,882.50 "
Nottinghamshire Fire and Rescue Service ,103483,Risual Limited,Risual Limited,Management & Support Services,5,202307,15/09/2022,P6,9103001,"-19,850.72 ","19,850.72 ",4101,Computer Software Maintenance Contracts,2095,ICT Digital Transformation,"16,542.26 "
Nottinghamshire Fire and Rescue Service ,103185,Concerto Support Services Limited,Concerto Support Services Limited,Management & Support Services,5,202307,30/09/2022,P6,9103137,"-17,394.00 ","17,394.00 ",4101,Computer Software Maintenance Contracts,2087,Estates Department (Previously Premises),"14,495.00 "
Nottinghamshire Fire and Rescue Service ,103373,GTT (Interoute/Easynet),GTT (Interoute/Easynet),Management & Support Services,5,202307,25/10/2022,P6,9103195,"-15,741.62 ","15,741.62 ",4101,Computer Software Maintenance Contracts,2095,ICT Digital Transformation,232.63 
Nottinghamshire Fire and Rescue Service ,103373,GTT (Interoute/Easynet),GTT (Interoute/Easynet),Management & Support Services,5,202307,25/10/2022,P6,9103195,"-15,741.62 ","15,741.62 ",4101,Computer Software Maintenance Contracts,2095,ICT Digital Transformation,"12,924.16 "
Nottinghamshire Fire and Rescue Service ,103483,Risual Limited,Risual Limited,Management & Support Services,5,202307,26/10/2022,P6,9103277,-270.00 ,270.00 ,4101,Computer Software Maintenance Contracts,2097,ICT Service Operations,225.00 
Nottinghamshire Fire and Rescue Service ,103257,Midland HR,Midland HR,Management & Support Services,5,202307,28/10/2022,P6,9103278,-648.00 ,648.00 ,4101,Computer Software Maintenance Contracts,2095,ICT Digital Transformation,540.00 
Nottinghamshire Fire and Rescue Service ,102103,Ricoh Uk Ltd,Ricoh Uk Ltd,Management & Support Services,1,202307,06/10/2022,P6,9103191,"-1,447.60 ","1,447.60 ",4105,Photocopier,2097,ICT Service Operations,"1,206.33 "
Nottinghamshire Fire and Rescue Service ,102103,Ricoh Uk Ltd,Ricoh Uk Ltd,Management & Support Services,1,202307,06/10/2022,P6,9103192,"-4,202.46 ","4,202.46 ",4105,Photocopier,2097,ICT Service Operations,"3,502.05 "
Nottinghamshire Fire and Rescue Service ,102103,Ricoh Uk Ltd,Ricoh Uk Ltd,Management & Support Services,1,202307,05/09/2022,P6,9103193,"-4,200.00 ","4,200.00 ",4105,Photocopier,2097,ICT Service Operations,"3,500.00 "
Nottinghamshire Fire and Rescue Service ,100396,Digital Fudge Ltd,Digital Fudge Ltd,#N/A,1,202307,16/09/2022,P6,9102978,"-1,680.00 ","1,680.00 ",4106,Computer Software Security Contracts,2098,ICT Security,"1,680.00 "
Nottinghamshire Fire and Rescue Service ,100289,Home Office,Home Office,Management & Support Services,4,202307,04/10/2022,P6,9103168,"-61,320.68 ","61,320.68 ",4204,FireLink Contract Charges,2097,ICT Service Operations,"51,100.57 "
Nottinghamshire Fire and Rescue Service ,103092,Daisy Corporate Services Trading Limited,Daisy Corporate Services Trading Limited,Management & Support Services,1,202307,01/09/2022,P6,9103157,"-1,556.60 ","1,556.60 ",4301,Phones - Landline,2096,ICT Service Transformation,"1,297.17 "
Nottinghamshire Fire and Rescue Service ,103092,Daisy Corporate Services Trading Limited,Daisy Corporate Services Trading Limited,Management & Support Services,1,202307,01/10/2022,P6,9103158,"-1,556.56 ","1,556.56 ",4301,Phones - Landline,2096,ICT Service Transformation,"1,297.13 "
Nottinghamshire Fire and Rescue Service ,103483,Risual Limited,Risual Limited,Management & Support Services,5,202307,17/10/2022,P6,9103186,"-2,013.36 ","2,013.36 ",4301,Phones - Landline,2097,ICT Service Operations,"1,677.80 "
Nottinghamshire Fire and Rescue Service ,101802,EE,EE,Management & Support Services,1,202307,01/10/2022,P6,9103194,"-3,981.95 ","3,981.95 ",4302,Phones - Mobiles,2097,ICT Service Operations,"3,318.29 "
Nottinghamshire Fire and Rescue Service ,104055,Dry Cleaners Limited T/A National Dry Cleaners,Dry Cleaners Limited T/A National Dry Cleaners,Management & Support Services,5,202307,15/09/2022,P6,9102903,-294.75 ,294.75 ,4403,Laundry and Dry Cleaning,2086,Procurement,245.62 
Nottinghamshire Fire and Rescue Service ,101851,Complete Business Solutions Group Ltd,Complete Business Solutions Group Ltd,Operational Responses,1,202307,30/09/2022,P6,9102940,-494.40 ,494.40 ,4532,Stationery,1003,London Road,412.00 
Nottinghamshire Fire and Rescue Service ,100357,Eastern Shires Purchasing Organisation,Eastern Shires Purchasing Organisation,Operational Responses,1,202307,18/10/2022,P6,9103141,-287.26 ,287.26 ,4532,Stationery,1020,Stockhill,239.38 
Nottinghamshire Fire and Rescue Service ,103589,Hot Pack International,Hot Pack International,Management & Support Services,5,202307,29/09/2022,P6,9102949,"-2,201.10 ","2,201.10 ",4534,Carriage and Packaging,2086,Procurement,53.00 
Nottinghamshire Fire and Rescue Service ,100468,Specialised Canvas Group,Specialised Canvas Group,Management & Support Services,1,202307,30/09/2022,P6,9102966,"-1,023.83 ","1,023.83 ",4534,Carriage and Packaging,2086,Procurement,26.53 
Nottinghamshire Fire and Rescue Service ,104081,Wel Medical Ltd,Wel Medical Ltd,Management & Support Services,5,202307,05/10/2022,P6,9102986,-365.82 ,365.82 ,4534,Carriage and Packaging,2086,Procurement,9.95 
Nottinghamshire Fire and Rescue Service ,104201,BlockaboxLimited,BlockaboxLimited,Management & Support Services,5,202307,04/10/2022,P6,9102997,-310.00 ,310.00 ,4534,Carriage and Packaging,9999,Default,10.00 
Nottinghamshire Fire and Rescue Service ,103589,Hot Pack International,Hot Pack International,Management & Support Services,5,202307,25/10/2022,P6,9103255,-491.88 ,491.88 ,4534,Carriage and Packaging,2086,Procurement,29.90 
Nottinghamshire Fire and Rescue Service ,102306,Northern Diver (International) Ltd,Northern Diver (International) Ltd,Management & Support Services,1,202307,25/10/2022,P6,9103256,"-6,333.60 ","6,333.60 ",4534,Carriage and Packaging,2086,Procurement,28.50 
Nottinghamshire Fire and Rescue Service ,103148,Kite Packaging Limited,Kite Packaging Limited,Management & Support Services,5,202307,27/10/2022,P6,9103272,-595.14 ,595.14 ,4534,Carriage and Packaging,2086,Procurement,495.96 
Nottinghamshire Fire and Rescue Service ,104206,S & R Construction,S & R Construction,Management & Support Services,5,202307,23/06/2022,P6,9102915,"-3,744.00 ","3,744.00 ",4541,Hydrant Maintenance,2084,Engineering,"3,120.00 "
Nottinghamshire Fire and Rescue Service ,104232,Dr Shaun Austin Ltd,Dr Shaun Austin Ltd,Management & Support Services,10,202307,24/08/2022,P6,9102971,-971.15 ,971.15 ,4552,Occupational Health Costs,2061,Occupational Health & Fitness,971.15 
Nottinghamshire Fire and Rescue Service ,104220,Health 2 Employment,Health 2 Employment,Management & Support Services,5,202307,03/10/2022,P6,9102974,-280.00 ,280.00 ,4552,Occupational Health Costs,2061,Occupational Health & Fitness,280.00 
Nottinghamshire Fire and Rescue Service ,104220,Health 2 Employment,Health 2 Employment,Management & Support Services,5,202307,03/10/2022,P6,9102975,-405.00 ,405.00 ,4552,Occupational Health Costs,2061,Occupational Health & Fitness,405.00 
Nottinghamshire Fire and Rescue Service ,104220,Health 2 Employment,Health 2 Employment,Management & Support Services,5,202307,03/10/2022,P6,9102976,-596.00 ,596.00 ,4552,Occupational Health Costs,2061,Occupational Health & Fitness,596.00 
Nottinghamshire Fire and Rescue Service ,102964,Trinity Occupational and Public Health Solutions Ltd,Trinity Occupational and Public Health Solutions Ltd,Management & Support Services,5,202307,30/09/2022,P6,9102991,"-2,250.00 ","2,250.00 ",4552,Occupational Health Costs,2061,Occupational Health & Fitness,"2,250.00 "
Nottinghamshire Fire and Rescue Service ,103377,Flat Fee Recruiter Limited,Flat Fee Recruiter Limited,Management & Support Services,5,202307,05/09/2022,P6,9103058,-298.80 ,298.80 ,4556,Translation and Interpretation Services,2049,Professional Support,249.00 
Nottinghamshire Fire and Rescue Service ,103377,Flat Fee Recruiter Limited,Flat Fee Recruiter Limited,Management & Support Services,5,202307,01/09/2022,P6,9103059,-298.80 ,298.80 ,4556,Translation and Interpretation Services,2049,Professional Support,249.00 
Nottinghamshire Fire and Rescue Service ,100019,Nuffield Sailing Centre,Nuffield Sailing Centre,Management & Support Services,1,202307,14/10/2022,P6,9103118,-880.00 ,880.00 ,4561,Overnight Accomodation,2059,Corporate Training,840.00 
Nottinghamshire Fire and Rescue Service ,100236,Asian Fire Service Association,Asian Fire Service Association,Management & Support Services,1,202307,15/04/2022,P6,9103120,"-1,000.00 ","1,000.00 ",4581,Subscriptions,2054,Equalities Team,"1,000.00 "
Nottinghamshire Fire and Rescue Service ,102073,B D Motor Spares,B D Motor Spares,Operational Responses,1,202307,09/10/2022,P6,9102994,"-5,544.00 ","5,544.00 ",4594,Training/ Teaching Equipment,1012,Retford,440.00 
Nottinghamshire Fire and Rescue Service ,102073,B D Motor Spares,B D Motor Spares,Management & Support Services,1,202307,09/10/2022,P6,9102994,"-5,544.00 ","5,544.00 ",4594,Training/ Teaching Equipment,2059,Corporate Training,220.00 
Nottinghamshire Fire and Rescue Service ,102073,B D Motor Spares,B D Motor Spares,Management & Support Services,1,202307,09/10/2022,P6,9102994,"-5,544.00 ","5,544.00 ",4594,Training/ Teaching Equipment,2059,Corporate Training,440.00 
Nottinghamshire Fire and Rescue Service ,102073,B D Motor Spares,B D Motor Spares,Management & Support Services,1,202307,09/10/2022,P6,9102994,"-5,544.00 ","5,544.00 ",4594,Training/ Teaching Equipment,2059,Corporate Training,"3,300.00 "
Nottinghamshire Fire and Rescue Service ,102073,B D Motor Spares,B D Motor Spares,Operational Responses,1,202307,15/09/2022,P6,9103063,"-2,376.00 ","2,376.00 ",4594,Training/ Teaching Equipment,1001,Mansfield,440.00 
Nottinghamshire Fire and Rescue Service ,102073,B D Motor Spares,B D Motor Spares,Operational Responses,1,202307,15/09/2022,P6,9103063,"-2,376.00 ","2,376.00 ",4594,Training/ Teaching Equipment,1015,Collingham,220.00 
Nottinghamshire Fire and Rescue Service ,102073,B D Motor Spares,B D Motor Spares,Operational Responses,1,202307,15/09/2022,P6,9103063,"-2,376.00 ","2,376.00 ",4594,Training/ Teaching Equipment,1016,Newark,660.00 
Nottinghamshire Fire and Rescue Service ,102073,B D Motor Spares,B D Motor Spares,Management & Support Services,1,202307,15/09/2022,P6,9103063,"-2,376.00 ","2,376.00 ",4594,Training/ Teaching Equipment,2059,Corporate Training,440.00 
Nottinghamshire Fire and Rescue Service ,102170,Qualsafe.Com,Qualsafe.Com,Management & Support Services,1,202307,12/10/2022,P6,9103074,"-2,052.00 ","2,052.00 ",4594,Training/ Teaching Equipment,2059,Corporate Training,"1,710.00 "
Nottinghamshire Fire and Rescue Service ,102073,B D Motor Spares,B D Motor Spares,Management & Support Services,1,202307,09/10/2022,P6,9102994,"-5,544.00 ","5,544.00 ",4600,Community Safety Delivery Consumables,2068,Prevention,220.00 
Nottinghamshire Fire and Rescue Service ,102073,B D Motor Spares,B D Motor Spares,Management & Support Services,1,202307,15/09/2022,P6,9103063,"-2,376.00 ","2,376.00 ",4600,Community Safety Delivery Consumables,2068,Prevention,220.00 
Nottinghamshire Fire and Rescue Service ,103849,Vision Support Services Ltd,Vision Support Services Ltd,Operational Responses,5,202307,30/11/2021,P6,9103200,-487.32 ,487.32 ,4600,Community Safety Delivery Consumables,1027,Carlton,406.10 
Nottinghamshire Fire and Rescue Service ,103849,Vision Support Services Ltd,Vision Support Services Ltd,Operational Responses,5,202307,22/11/2021,P6,9103201,-487.32 ,487.32 ,4600,Community Safety Delivery Consumables,1006,Edwinstowe,406.10 
Nottinghamshire Fire and Rescue Service ,104173,Treble 5 Treble 1 Limited,Treble 5 Treble 1 Limited,Management & Support Services,5,202307,27/10/2022,P6,9103248,"-3,600.00 ","3,600.00 ",4601,Community Safety Delivery Equipment,2068,Prevention,"3,000.00 "
Nottinghamshire Fire and Rescue Service ,100334,Ashfield District Council (Council Offices),Ashfield District Council (Council Offices),Management & Support Services,4,202307,07/12/2021,P6,9102907,"-3,900.00 ","3,900.00 ",4621,Contribution to Partnership Working,2068,Prevention,"3,900.00 "
Nottinghamshire Fire and Rescue Service ,103714,The Community Heartbeat Trust Charity/The Heartbeat Trust (Solutions) Limited,The Community Heartbeat Trust Charity/The Heartbeat Trust (Solutions) Limited,Management & Support Services,5,202307,03/10/2022,P6,9103035,"-3,477.60 ","3,477.60 ",4621,Contribution to Partnership Working,2068,Prevention,"2,898.00 "
Nottinghamshire Fire and Rescue Service ,101712,Browne Jacobson LLP,Browne Jacobson LLP,Management & Support Services,1,202307,30/08/2022,P6,9103096,"-8,768.52 ","8,768.52 ",7002,Legal Services,2058,HR Support,"3,000.00 "
Nottinghamshire Fire and Rescue Service ,101712,Browne Jacobson LLP,Browne Jacobson LLP,Management & Support Services,1,202307,30/08/2022,P6,9103096,"-8,768.52 ","8,768.52 ",7002,Legal Services,2058,HR Support,"3,500.00 "
Nottinghamshire Fire and Rescue Service ,101712,Browne Jacobson LLP,Browne Jacobson LLP,Management & Support Services,1,202307,30/08/2022,P6,9103096,"-8,768.52 ","8,768.52 ",7002,Legal Services,2087,Estates Department (Previously Premises),778.10 
Nottinghamshire Fire and Rescue Service ,103589,Hot Pack International,Hot Pack International,Management & Support Services,5,202307,29/09/2022,P6,9102949,"-2,201.10 ","2,201.10 ",B314,Stock,9999,Stock ,"2,137.50 "
Nottinghamshire Fire and Rescue Service ,102190,Dot Promotional Clothing,Dot Promotional Clothing,Management & Support Services,1,202307,04/10/2022,P6,9102959,"-2,285.28 ","2,285.28 ",B314,Stock,9999,Stock ,"1,904.40 "
Nottinghamshire Fire and Rescue Service ,100468,Specialised Canvas Group,Specialised Canvas Group,Management & Support Services,1,202307,30/09/2022,P6,9102966,"-1,023.83 ","1,023.83 ",B314,Stock,9999,Stock ,826.66 
Nottinghamshire Fire and Rescue Service ,103685,AB Sports Nutrition,AB Sports Nutrition,Management & Support Services,5,202307,28/09/2022,P6,9102983,"-2,073.60 ","2,073.60 ",B314,Stock,9999,Stock ,"1,728.00 "
Nottinghamshire Fire and Rescue Service ,102864,William Sugden & sons Limited,William Sugden & sons Limited,Management & Support Services,5,202307,04/10/2022,P6,9102985,-295.20 ,295.20 ,B314,Stock,9999,Stock ,246.00 
Nottinghamshire Fire and Rescue Service ,104081,Wel Medical Ltd,Wel Medical Ltd,Management & Support Services,5,202307,05/10/2022,P6,9102986,-365.82 ,365.82 ,B314,Stock,9999,Stock ,294.90 
Nottinghamshire Fire and Rescue Service ,101782,Derbyshire Fire Authority,Derbyshire Fire Authority,Management & Support Services,4,202307,06/10/2022,P6,9102987,-507.70 ,507.70 ,B314,Stock,9999,Stock ,423.08 
Nottinghamshire Fire and Rescue Service ,100357,Eastern Shires Purchasing Organisation,Eastern Shires Purchasing Organisation,Management & Support Services,1,202307,03/10/2022,P6,9102989,-713.69 ,713.69 ,B314,Stock,9999,Stock ,594.74 
Nottinghamshire Fire and Rescue Service ,104201,BlockaboxLimited,BlockaboxLimited,Management & Support Services,5,202307,04/10/2022,P6,9102997,-310.00 ,310.00 ,B314,Stock,9999,Stock ,300.00 
Nottinghamshire Fire and Rescue Service ,102190,Dot Promotional Clothing,Dot Promotional Clothing,Management & Support Services,1,202307,04/10/2022,P6,9103015,-522.00 ,522.00 ,B314,Stock,9999,Stock ,435.00 
Nottinghamshire Fire and Rescue Service ,102864,William Sugden & sons Limited,William Sugden & sons Limited,Management & Support Services,5,202307,05/10/2022,P6,9103022,-859.03 ,859.03 ,B314,Stock,9999,Stock ,715.86 
Nottinghamshire Fire and Rescue Service ,100357,Eastern Shires Purchasing Organisation,Eastern Shires Purchasing Organisation,Management & Support Services,1,202307,26/09/2022,P6,9103042,"-1,250.16 ","1,250.16 ",B314,Stock,9999,Stock ,"1,041.80 "
Nottinghamshire Fire and Rescue Service ,100299,FireAngel Safety Technology Limited,FireAngel Safety Technology Limited,Management & Support Services,1,202307,07/10/2022,P6,9103043,-563.40 ,563.40 ,B314,Stock,9999,Stock ,469.50 
Nottinghamshire Fire and Rescue Service ,102376,Bristol Uniforms Limited,Bristol Uniforms Limited,Management & Support Services,1,202307,06/10/2022,P6,9103050,-779.93 ,779.93 ,B314,Stock,9999,Stock ,649.94 
Nottinghamshire Fire and Rescue Service ,102376,Bristol Uniforms Limited,Bristol Uniforms Limited,Management & Support Services,1,202307,06/10/2022,P6,9103051,"-3,120.30 ","3,120.30 ",B314,Stock,9999,Stock ,"2,600.25 "
Nottinghamshire Fire and Rescue Service ,100299,FireAngel Safety Technology Limited,FireAngel Safety Technology Limited,Management & Support Services,1,202307,04/10/2022,P6,9103064,"-15,600.00 ","15,600.00 ",B314,Stock,9999,Stock ,"13,000.00 "
Nottinghamshire Fire and Rescue Service ,103981,Joseph Gleave and Son Limited -Joseph Gleave and Son (Holdings) Limited,Joseph Gleave and Son Limited -Joseph Gleave and Son (Holdings) Limited,Management & Support Services,5,202307,14/10/2022,P6,9103098,-374.71 ,374.71 ,B314,Stock,9999,Stock ,312.26 
Nottinghamshire Fire and Rescue Service ,102190,Dot Promotional Clothing,Dot Promotional Clothing,Management & Support Services,1,202307,10/10/2022,P6,9103103,-696.00 ,696.00 ,B314,Stock,9999,Stock ,580.00 
Nottinghamshire Fire and Rescue Service ,102265,Premier Vanguard,Premier Vanguard,Management & Support Services,1,202307,17/10/2022,P6,9103117,-579.00 ,579.00 ,B314,Stock,9999,Stock ,482.50 
Nottinghamshire Fire and Rescue Service ,102218,Kays Medical Ltd,Kays Medical Ltd,Management & Support Services,5,202307,18/10/2022,P6,9103135,"-1,367.52 ","1,367.52 ",B314,Stock,9999,Stock ,"1,139.60 "
Nottinghamshire Fire and Rescue Service ,103981,Joseph Gleave and Son Limited -Joseph Gleave and Son (Holdings) Limited,Joseph Gleave and Son Limited -Joseph Gleave and Son (Holdings) Limited,Management & Support Services,5,202307,21/10/2022,P6,9103154,-280.80 ,280.80 ,B314,Stock,9999,Stock ,234.00 
Nottinghamshire Fire and Rescue Service ,104020,MPL (Yorkshire) Ltd,MPL (Yorkshire) Ltd,Management & Support Services,5,202307,17/10/2022,P6,9103172,-360.00 ,360.00 ,B314,Stock,9999,Stock ,300.00 
Nottinghamshire Fire and Rescue Service ,101190,Lyon Equipment Limited,Lyon Equipment Limited,Management & Support Services,1,202307,21/10/2022,P6,9103173,-335.14 ,335.14 ,B314,Stock,9999,Stock ,279.28 
Nottinghamshire Fire and Rescue Service ,102190,Dot Promotional Clothing,Dot Promotional Clothing,Management & Support Services,1,202307,24/10/2022,P6,9103184,-556.80 ,556.80 ,B314,Stock,9999,Stock ,464.00 
Nottinghamshire Fire and Rescue Service ,100357,Eastern Shires Purchasing Organisation,Eastern Shires Purchasing Organisation,Management & Support Services,1,202307,23/10/2022,P6,9103187,-601.12 ,601.12 ,B314,Stock,9999,Stock ,500.93 
Nottinghamshire Fire and Rescue Service ,102376,Bristol Uniforms Limited,Bristol Uniforms Limited,Management & Support Services,1,202307,20/10/2022,P6,9103190,-502.96 ,502.96 ,B314,Stock,9999,Stock ,419.13 
Nottinghamshire Fire and Rescue Service ,102376,Bristol Uniforms Limited,Bristol Uniforms Limited,Management & Support Services,1,202307,25/10/2022,P6,9103196,"-1,341.22 ","1,341.22 ",B314,Stock,9999,Stock ,"1,117.68 "
Nottinghamshire Fire and Rescue Service ,102376,Bristol Uniforms Limited,Bristol Uniforms Limited,Management & Support Services,1,202307,21/10/2022,P6,9103204,"-1,530.91 ","1,530.91 ",B314,Stock,9999,Stock ,"1,275.76 "
Nottinghamshire Fire and Rescue Service ,103589,Hot Pack International,Hot Pack International,Management & Support Services,5,202307,25/10/2022,P6,9103255,-491.88 ,491.88 ,B314,Stock,9999,Stock ,456.00 
Nottinghamshire Fire and Rescue Service ,102306,Northern Diver (International) Ltd,Northern Diver (International) Ltd,Management & Support Services,1,202307,25/10/2022,P6,9103256,"-6,333.60 ","6,333.60 ",B314,Stock,9999,Stock ,"5,249.50 "
Nottinghamshire Fire and Rescue Service ,102280,Amptron Electrical Services,Amptron Electrical Services,Management & Support Services,1,202307,30/09/2022,P6,9103090,"-9,966.34 ","9,966.34 ",C101,Building Works,4100,Fire Station Improvement & Refurbishments,"8,305.28 "
Nottinghamshire Fire and Rescue Service ,104209,Project ff&e,Project ff&e,Management & Support Services,5,202307,03/05/2022,P6,9103212,"-2,771.64 ","2,771.64 ",C105,Furniture,4102,Strategic New Build Projects,"2,309.70 "
Nottinghamshire Fire and Rescue Service ,100437,Nottinghamshire Fire Safety Limited,Nottinghamshire Fire Safety Limited,Management & Support Services,1,202307,07/10/2022,P6,9103095,-844.70 ,844.70 ,C113,Fixtures and Fittings,4102,Strategic New Build Projects,703.92 
Nottinghamshire Fire and Rescue Service ,102912,Garran Lockers,Garran Lockers,Management & Support Services,5,202307,25/10/2022,P6,9103245,"-3,000.00 ","3,000.00 ",C113,Fixtures and Fittings,4100,Fire Station Improvement & Refurbishments,"2,500.00 "
Nottinghamshire Fire and Rescue Service ,102757,Turner and Townsend Project Management,Turner and Townsend Project Management,Management & Support Services,5,202307,30/09/2022,P6,9102981,"-7,438.80 ","7,438.80 ",C156,Professional Fees - Construction Design Management,4102,Strategic New Build Projects,"6,199.00 "
Nottinghamshire Fire and Rescue Service ,101712,Browne Jacobson LLP,Browne Jacobson LLP,Management & Support Services,1,202307,30/08/2022,P6,9103096,"-8,768.52 ","8,768.52 ",C157,Professional Fees - Legal,4102,Strategic New Build Projects,29.00 
Nottinghamshire Fire and Rescue Service ,102979,Planet IT Limited,Planet IT Limited,Management & Support Services,5,202307,07/10/2022,P6,9103024,"-14,310.00 ","14,310.00 ",C200,Hardware,4300,ICT Capital Programme,"11,925.00 "
Nottinghamshire Fire and Rescue Service ,103257,Midland HR,Midland HR,Management & Support Services,5,202307,27/09/2022,P6,9102905,"-5,184.00 ","5,184.00 ",C202,Consultancy and Services,4300,ICT Capital Programme,"4,320.00 "
Nottinghamshire Fire and Rescue Service ,103483,Risual Limited,Risual Limited,Management & Support Services,5,202307,30/09/2022,P6,9102910,"-3,900.00 ","3,900.00 ",C202,Consultancy and Services,4300,ICT Capital Programme,"3,250.00 "
Nottinghamshire Fire and Rescue Service ,103483,Risual Limited,Risual Limited,Management & Support Services,5,202307,23/09/2022,P6,9102927,"-1,020.00 ","1,020.00 ",C202,Consultancy and Services,4300,ICT Capital Programme,850.00 
Nottinghamshire Fire and Rescue Service ,103483,Risual Limited,Risual Limited,Management & Support Services,5,202307,30/09/2022,P6,9102963,-960.00 ,960.00 ,C202,Consultancy and Services,4102,Strategic New Build Projects,800.00 
Nottinghamshire Fire and Rescue Service ,103483,Risual Limited,Risual Limited,Management & Support Services,5,202307,16/09/2022,P6,9103086,"-1,020.00 ","1,020.00 ",C202,Consultancy and Services,4300,ICT Capital Programme,850.00 
Nottinghamshire Fire and Rescue Service ,104009,Systel,Systel,Management & Support Services,5,202307,13/10/2022,P6,9103267,"-1,130.00 ","1,130.00 ",C202,Consultancy and Services,4102,Strategic New Build Projects,"1,130.00 "
Nottinghamshire Fire and Rescue Service ,103958,Lithium3 Technology Recruitment Limited,Lithium3 Technology Recruitment Limited,Management & Support Services,5,202307,30/09/2022,P6,9103053,"-4,560.00 ","4,560.00 ",C204,Cost of Employee Working on Capital Projects,4102,Strategic New Build Projects,"3,800.00 "
Nottinghamshire Fire and Rescue Service ,103958,Lithium3 Technology Recruitment Limited,Lithium3 Technology Recruitment Limited,Management & Support Services,5,202307,31/08/2022,P6,9103071,"-4,800.00 ","4,800.00 ",C204,Cost of Employee Working on Capital Projects,4102,Strategic New Build Projects,"4,000.00 "
Nottinghamshire Fire and Rescue Service ,102306,Northern Diver (International) Ltd,Northern Diver (International) Ltd,Management & Support Services,1,202307,25/10/2022,P6,9103198,-564.00 ,564.00 ,C300,Other Equipment - Purchase,4200,Equipment Capital Programme,470.00 
,***Note:,,,,,,,,,,,,,,,
,"***The report shows the payment in its original form. This means disaggregating many invoices into individual component payments many of which will be less than £250 in their own right. This explains why you will see many of the amounts showing less than £250. They were, however, paid as part of an invoice of £250 or more.

**** The Invoice date is the date issued on the invoice. This date may fall out of the date range for the report. In most cases this is due to the invoice being received  late.",,,,,,,,,,,,,,,